Workbook

Sheet OUTILS Export PGI
I6: Coller en I13 le lundi de la 1er semaine complete
A9: =TODAY() -> 2017-02-03 | B9: Planning CA Mensuel
B10: S-1 | I10: S1 | P10: S2 | W10: S3 | AD10: S4 | AK10: S5 | AR10: S6 | AY10: S7 | BF10: S8 | BM10: S9 | BT10: S10 | CA10: S11 | CH10: S12 | CO10: S13 | CV10: S14 | DC10: S15 | DJ10: S16 | DQ10: S17 | DX10: S18 | EE10: S19 | EL10: S20 | ES10: S21 | EZ10: S22 | FG10: S23 | FN10: S24 | FU10: S25 | GB10: S26 | GI10: S27 | GP10: S28 | GW10: S29 | HD10: S30 | HK10: S31 | HR10: S32 | HY10: S33 | IF10: S34 | IM10: S35 | IT10: S36 | JA10: S37 | JH10: S38 | JO10: S39 | JV10: S40 | KC10: S41 | KJ10: S42 | KQ10: S43 | KX10: S44 | LE10: S45 | LL10: S46 | LS10: S47 | LZ10: S48 | MG10: S49 | MN10: S50 | MU10: S51 | NB10: S52 | NI10: Janvier | NJ10: Février | NK10: Mars | NL10: Avril | NM10: Mai | NN10: Juin | NO10: Juillet | NP10: Aout | NQ10: Septembre | NR10: Octobre | NS10: Novembre | NT10: Décembre | NU10: TOTAL | NV10: S01 | NW10: S02 | NX10: S03 | NY10: S04 | NZ10: S05 | OA10: S06 | OB10: S07 | OC10: S08 | OD10: S09 | OE10: S10 | OF10: S11 | OG10: S12 | OH10: S13 | OI10: S14 | OJ10: S15 | OK10: S16 | OL10: S17 | OM10: S18 | ON10: S19 | OO10: S20 | OP10: S21 | OQ10: S22 | OR10: S23 | OS10: S24 | OT10: S25 | OU10: S26 | OV10: S27 | OW10: S28 | OX10: S29 | OY10: S30 | OZ10: S31 | PA10: S32 | PB10: S33 | PC10: S34 | PD10: S35 | PE10: S36 | PF10: S37 | PG10: S38 | PH10: S39 | PI10: S40 | PJ10: S41 | PK10: S42 | PL10: S43 | PM10: S44 | PN10: S45 | PO10: S46 | PP10: S47 | PQ10: S48 | PR10: S49 | PS10: S50 | PT10: S51 | PU10: S52
H11: 2017-01-01 | I11: 2017-01-02 | J11: 2017-01-03 | K11: 2017-01-04 | L11: 2017-01-05 | M11: 2017-01-06 | N11: 2017-01-07 | O11: 2017-01-08 | P11: 2017-01-09 | Q11: 2017-01-10 | R11: 2017-01-11 | S11: 2017-01-12 | T11: 2017-01-13 | U11: 2017-01-14 | V11: 2017-01-15 | W11: 2017-01-16 | X11: 2017-01-17 | Y11: 2017-01-18 | Z11: 2017-01-19 | AA11: 2017-01-20 | AB11: 2017-01-21 | AC11: 2017-01-22 | AD11: 2017-01-23 | AE11: 2017-01-24 | AF11: 2017-01-25 | AG11: 2017-01-26 | AH11: 2017-01-27 | AI11: 2017-01-28 | AJ11: 2017-01-29 | AK11: 2017-01-30 | AL11: 2017-01-31 | AM11: 2017-02-01 | AN11: 2017-02-02 | AO11: 2017-02-03 | AP11: 2017-02-04 | AQ11: 2017-02-05 | AR11: 2017-02-06 | AS11: 2017-02-07 | AT11: 2017-02-08 | AU11: 2017-02-09 | AV11: 2017-02-10 | AW11: 2017-02-11 | AX11: 2017-02-12 | AY11: 2017-02-13 | AZ11: 2017-02-14 | BA11: 2017-02-15 | BB11: 2017-02-16 | BC11: 2017-02-17 | BD11: 2017-02-18 | BE11: 2017-02-19 | BF11: 2017-02-20 | BG11: 2017-02-21 | BH11: 2017-02-22 | BI11: 2017-02-23 | BJ11: 2017-02-24 | BK11: 2017-02-25 | BL11: 2017-02-26 | BM11: 2017-02-27 | BN11: 2017-02-28 | BO11: 2017-03-01 | BP11: 2017-03-02 | BQ11: 2017-03-03 | BR11: 2017-03-04 | BS11: 2017-03-05 | BT11: 2017-03-06 | BU11: 2017-03-07 | BV11: 2017-03-08 | BW11: 2017-03-09 | BX11: 2017-03-10 | BY11: 2017-03-11 | BZ11: 2017-03-12 | CA11: 2017-03-13 | CB11: 2017-03-14 | CC11: 2017-03-15 | CD11: 2017-03-16 | CE11: 2017-03-17 | CF11: 2017-03-18 | CG11: 2017-03-19 | CH11: 2017-03-20 | CI11: 2017-03-21 | CJ11: 2017-03-22 | CK11: 2017-03-23 | CL11: 2017-03-24 | CM11: 2017-03-25 | CN11: 2017-03-26 | CO11: 2017-03-27 | CP11: 2017-03-28 | CQ11: 2017-03-29 | CR11: 2017-03-30 | CS11: 2017-03-31 | CT11: 2017-04-01 | CU11: 2017-04-02 | CV11: 2017-04-03 | CW11: 2017-04-04 | CX11: 2017-04-05 | CY11: 2017-04-06 | CZ11: 2017-04-07 | DA11: 2017-04-08 | DB11: 2017-04-09 | DC11: 2017-04-10 | DD11: 2017-04-11 | DE11: 2017-04-12 | DF11: 2017-04-13 | DG11: 2017-04-14 | DH11: 2017-04-15 | DI11: 2017-04-16 | DJ11: 2017-04-17 | DK11: 2017-04-18 | DL11: 2017-04-19 | DM11: 2017-04-20 | DN11: 2017-04-21 | DO11: 2017-04-22 | DP11: 2017-04-23 | DQ11: 2017-04-24 | DR11: 2017-04-25 | DS11: 2017-04-26 | DT11: 2017-04-27 | DU11: 2017-04-28 | DV11: 2017-04-29 | DW11: 2017-04-30 | DX11: 2017-05-01 | DY11: 2017-05-02 | DZ11: 2017-05-03 | EA11: 2017-05-04 | EB11: 2017-05-05 | EC11: 2017-05-06 | ED11: 2017-05-07 | EE11: 2017-05-08 | EF11: 2017-05-09 | EG11: 2017-05-10 | EH11: 2017-05-11 | EI11: 2017-05-12 | EJ11: 2017-05-13 | EK11: 2017-05-14 | EL11: 2017-05-15 | EM11: 2017-05-16 | EN11: 2017-05-17 | EO11: 2017-05-18 | EP11: 2017-05-19 | EQ11: 2017-05-20 | ER11: 2017-05-21 | ES11: 2017-05-22 | ET11: 2017-05-23 | EU11: 2017-05-24 | EV11: 2017-05-25 | EW11: 2017-05-26 | EX11: 2017-05-27 | EY11: 2017-05-28 | EZ11: 2017-05-29 | FA11: 2017-05-30 | FB11: 2017-05-31 | FC11: 2017-06-01 | FD11: 2017-06-02 | FE11: 2017-06-03 | FF11: 2017-06-04 | FG11: 2017-06-05 | FH11: 2017-06-06 | FI11: 2017-06-07 | FJ11: 2017-06-08 | FK11: 2017-06-09 | FL11: 2017-06-10 | FM11: 2017-06-11 | FN11: 2017-06-12 | FO11: 2017-06-13 | FP11: 2017-06-14 | FQ11: 2017-06-15 | FR11: 2017-06-16 | FS11: 2017-06-17 | FT11: 2017-06-18 | FU11: 2017-06-19 | FV11: 2017-06-20 | FW11: 2017-06-21 | FX11: 2017-06-22 | FY11: 2017-06-23 | FZ11: 2017-06-24 | GA11: 2017-06-25 | GB11: 2017-06-26 | GC11: 2017-06-27 | GD11: 2017-06-28 | GE11: 2017-06-29 | GF11: 2017-06-30 | GG11: 2017-07-01 | GH11: 2017-07-02 | GI11: 2017-07-03 | GJ11: 2017-07-04 | GK11: 2017-07-05 | GL11: 2017-07-06 | GM11: 2017-07-07 | GN11: 2017-07-08 | GO11: 2017-07-09 | GP11: 2017-07-10 | GQ11: 2017-07-11 | GR11: 2017-07-12 | GS11: 2017-07-13 | GT11: 2017-07-14 | GU11: 2017-07-15 | GV11: 2017-07-16 | GW11: 2017-07-17 | GX11: 2017-07-18 | GY11: 2017-07-19 | GZ11: 2017-07-20 | HA11: 2017-07-21 | HB11: 2017-07-22 | HC11: 2017-07-23 | HD11: 2017-07-24 | HE11: 2017-07-25 | HF11: 2017-07-26 | HG11: 2017-07-27 | HH11: 2017-07-28 | HI11: 2017-07-29 | HJ11: 2017-07-30 | HK11: 2017-07-31 | HL11: 2017-08-01 | HM11: 2017-08-02 | HN11: 2017-08-03 | HO11: 2017-08-04 | HP11: 2017-08-05 | HQ11: 2017-08-06 | HR11: 2017-08-07 | HS11: 2017-08-08 | HT11: 2017-08-09 | HU11: 2017-08-10 | HV11: 2017-08-11 | HW11: 2017-08-12 | HX11: 2017-08-13 | HY11: 2017-08-14 | HZ11: 2017-08-15 | IA11: 2017-08-16 | IB11: 2017-08-17 | IC11: 2017-08-18 | ID11: 2017-08-19 | IE11: 2017-08-20 | IF11: 2017-08-21 | IG11: 2017-08-22 | IH11: 2017-08-23 | II11: 2017-08-24 | IJ11: 2017-08-25 | IK11: 2017-08-26 | IL11: 2017-08-27 | IM11: 2017-08-28 | IN11: 2017-08-29 | IO11: 2017-08-30 | IP11: 2017-08-31 | IQ11: 2017-09-01 | IR11: 2017-09-02 | IS11: 2017-09-03 | IT11: 2017-09-04 | IU11: 2017-09-05 | IV11: 2017-09-06 | IW11: 2017-09-07 | IX11: 2017-09-08 | IY11: 2017-09-09 | IZ11: 2017-09-10 | JA11: 2017-09-11 | JB11: 2017-09-12 | JC11: 2017-09-13 | JD11: 2017-09-14 | JE11: 2017-09-15 | JF11: 2017-09-16 | JG11: 2017-09-17 | JH11: 2017-09-18 | JI11: 2017-09-19 | JJ11: 2017-09-20 | JK11: 2017-09-21 | JL11: 2017-09-22 | JM11: 2017-09-23 | JN11: 2017-09-24 | JO11: 2017-09-25 | JP11: 2017-09-26 | JQ11: 2017-09-27 | JR11: 2017-09-28 | JS11: 2017-09-29 | JT11: 2017-09-30 | JU11: 2017-10-01 | JV11: 2017-10-02 | JW11: 2017-10-03 | JX11: 2017-10-04 | JY11: 2017-10-05 | JZ11: 2017-10-06 | KA11: 2017-10-07 | KB11: 2017-10-08 | KC11: 2017-10-09 | KD11: 2017-10-10 | KE11: 2017-10-11 | KF11: 2017-10-12 | KG11: 2017-10-13 | KH11: 2017-10-14 | KI11: 2017-10-15 | KJ11: 2017-10-16 | KK11: 2017-10-17 | KL11: 2017-10-18 | KM11: 2017-10-19 | KN11: 2017-10-20 | KO11: 2017-10-21 | KP11: 2017-10-22 | KQ11: 2017-10-23 | KR11: 2017-10-24 | KS11: 2017-10-25 | KT11: 2017-10-26 | KU11: 2017-10-27 | KV11: 2017-10-28 | KW11: 2017-10-29 | KX11: 2017-10-30 | KY11: 2017-10-31 | KZ11: 2017-11-01 | LA11: 2017-11-02 | LB11: 2017-11-03 | LC11: 2017-11-04 | LD11: 2017-11-05 | LE11: 2017-11-06 | LF11: 2017-11-07 | LG11: 2017-11-08 | LH11: 2017-11-09 | LI11: 2017-11-10 | LJ11: 2017-11-11 | LK11: 2017-11-12 | LL11: 2017-11-13 | LM11: 2017-11-14 | LN11: 2017-11-15 | LO11: 2017-11-16 | LP11: 2017-11-17 | LQ11: 2017-11-18 | LR11: 2017-11-19 | LS11: 2017-11-20 | LT11: 2017-11-21 | LU11: 2017-11-22 | LV11: 2017-11-23 | LW11: 2017-11-24 | LX11: 2017-11-25 | LY11: 2017-11-26 | LZ11: 2017-11-27 | MA11: 2017-11-28 | MB11: 2017-11-29 | MC11: 2017-11-30 | MD11: 2017-12-01 | ME11: 2017-12-02 | MF11: 2017-12-03 | MG11: 2017-12-04 | MH11: 2017-12-05 | MI11: 2017-12-06 | MJ11: 2017-12-07 | MK11: 2017-12-08 | ML11: 2017-12-09 | MM11: 2017-12-10 | MN11: 2017-12-11 | MO11: 2017-12-12 | MP11: 2017-12-13 | MQ11: 2017-12-14 | MR11: 2017-12-15 | MS11: 2017-12-16 | MT11: 2017-12-17 | MU11: 2017-12-18 | MV11: 2017-12-19 | MW11: 2017-12-20 | MX11: 2017-12-21 | MY11: 2017-12-22 | MZ11: 2017-12-23 | NA11: 2017-12-24 | NB11: 2017-12-25 | NC11: 2017-12-26 | ND11: 2017-12-27 | NE11: 2017-12-28 | NF11: 2017-12-29 | NG11: 2017-12-30 | NH11: 2017-12-31
A12: A | H12: H | I12: J | J12: J | K12: J | L12: J | M12: 7 | N12: R | O12: H | P12: J | Q12: J | R12: J | S12: J | T12: J | U12: R | V12: H | W12: 7 | X12: J | Y12: J | Z12: J | AA12: J | AB12: R | AC12: H | AD12: K | AE12: 7 | AF12: K | AG12: K | AH12: K | AI12: R | AJ12: H | AK12: J | AL12: J | AM12: J | AN12: J | AO12: J | AP12: R | AQ12: H | AR12: J | AS12: J | AT12: J | AU12: J | AV12: J | AW12: R | AX12: H | AY12: 7 | AZ12: 7 | BA12: 21 | BB12: 21 | BC12: 21 | BD12: R | BE12: H | BF12: 21 | BG12: 21 | BH12: 7 | BI12: 7 | BJ12: K | BK12: R | BL12: H | BM12: J | BN12: J | BO12: J | BP12: J | BQ12: J | BR12: R | BS12: H | BT12: J | BU12: J | BV12: J | BW12: J | BX12: J | BY12: R | BZ12: H | CA12: 7 | CB12: J | CC12: J | CD12: J | CE12: J | CF12: R | CG12: H | CH12: K | CI12: K | CJ12: 7 | CK12: K | CL12: K | CM12: R | CN12: H | CO12: J | CP12: J | CQ12: J | CR12: J | CS12: 7 | CT12: R | CU12: H | CV12: J | CW12: J | CX12: J | CY12: J | CZ12: J | DA12: R | DB12: H | DC12: 7 | DD12: J | DE12: J | DF12: J | DG12: J | DH12: R | DI12: H | DJ12: K | DK12: K | DL12: 7 | DM12: K | DN12: K | DO12: R | DP12: H | DQ12: J | DR12: J | DS12: J | DT12: J | DU12: 7 | DV12: R | DW12: H | DX12: J | DY12: J | DZ12: J | EA12: J | EB12: J | EC12: R | ED12: H | EE12: 7 | EF12: J | EG12: J | EH12: J | EI12: J | EJ12: R | EK12: H | EL12: K | EM12: K | EN12: 7 | EO12: K | EP12: K | EQ12: R | ER12: H | ES12: J | ET12: J | EU12: J | EV12: J | EW12: 7 | EX12: R | EY12: H | EZ12: J | FA12: J | FB12: J | FC12: J | FD12: J | FE12: R | FF12: H | FG12: 7 | FH12: J | FI12: J | FJ12: J | FK12: J | FL12: R | FM12: H | FN12: K | FO12: K | FP12: 7 | FQ12: K | FR12: K | FS12: R | FT12: H | FU12: J | FV12: J | FW12: J | FX12: J | FY12: 7 | FZ12: R | GA12: H | GB12: J | GC12: J | GD12: J | GE12: J | GF12: J | GG12: R | GH12: H | GI12: 7 | GJ12: J | GK12: J | GL12: J | GM12: J | GN12: R | GO12: H | GP12: K | GQ12: K | GR12: 7 | GS12: K | GT12: K | GU12: R | GV12: H | GW12: J | GX12: J | GY12: J | GZ12: J | HA12: 7 | HB12: R | HC12: H | HD12: J | HE12: J | HF12: J | HG12: J | HH12: J | HI12: R | HJ12: H | HK12: 7 | HL12: J | HM12: J | HN12: J | HO12: J | HP12: R | HQ12: H | HR12: K | HS12: K | HT12: 7 | HU12: K | HV12: K | HW12: R | HX12: H | HY12: J | HZ12: J | IA12: J | IB12: J | IC12: 7 | ID12: R | IE12: H | IF12: J | IG12: J | IH12: J | II12: J | IJ12: J | IK12: R | IL12: H | IM12: 7 | IN12: J | IO12: J | IP12: J | IQ12: J | IR12: R | IS12: H | IT12: K | IU12: K | IV12: 7 | IW12: K | IX12: K | IY12: R | IZ12: H | JA12: J | JB12: J | JC12: J | JD12: J | JE12: 7 | JF12: R | JG12: H | JH12: J | JI12: J | JJ12: J | JK12: J | JL12: J | JM12: R | JN12: H | JO12: 7 | JP12: J | JQ12: J | JR12: J | JS12: J | JT12: R | JU12: H | JV12: K | JW12: K | JX12: 7 | JY12: K | JZ12: K | KA12: R | KB12: H | KC12: J | KD12: J | KE12: J | KF12: J | KG12: 7 | KH12: R | KI12: H | KJ12: J | KK12: J | KL12: J | KM12: J | KN12: J | KO12: R | KP12: H | KQ12: 7 | KR12: J | KS12: J | KT12: J | KU12: J | KV12: R | KW12: H | KX12: K | KY12: K | KZ12: 7 | LA12: K | LB12: K | LC12: R | LD12: H | LE12: J | LF12: J | LG12: J | LH12: J | LI12: 7 | LJ12: R | LK12: H | LL12: J | LM12: J | LN12: J | LO12: J | LP12: J | LQ12: R | LR12: H | LS12: 7 | LT12: J | LU12: J | LV12: J | LW12: J | LX12: R | LY12: H | LZ12: K | MA12: K | MB12: 7 | MC12: K | MD12: K | ME12: R | MF12: H | MG12: J | MH12: J | MI12: J | MJ12: J | MK12: 7 | ML12: R | MM12: H | MN12: J | MO12: J | MP12: J | MQ12: J | MR12: J | MS12: R | MT12: H | MU12: 7 | MV12: J | MW12: J | MX12: J | MY12: J | MZ12: R | NA12: H | NB12: K | NC12: K | ND12: 7 | NE12: K | NF12: K | NG12: R | NH12: H | NI12: =comptecouleurfond2($H12:$AL12,$D$11) -> 18 | NJ12: =comptecouleurfond2($AM12:$BN12,$D$11) -> 11 | NK12: =comptecouleurfond2($BO12:$CS12,$D$11) -> 20 | NL12: =comptecouleurfond2($CT12:$DW12,$D$11) -> 16 | NM12: =comptecouleurfond2($DX12:$FB12,$D$11) -> 18 | NN12: =comptecouleurfond2($FC12:$GF12,$D$11) -> 19 | NO12: =comptecouleurfond2($GG12:$HK12,$D$11) -> 16 | NP12: =comptecouleurfond2($HL12:$IP12,$D$11) -> 19 | NQ12: =comptecouleurfond2($IQ12:$JT12,$D$11) -> 18 | NR12: =comptecouleurfond2($JU12:$KY12,$D$11) -> 19 | NS12: =comptecouleurfond2($KZ12:$MC12,$D$11) -> 18 | NT12: =comptecouleurfond2($MD12:$NH12,$D$11) -> 17 | NU12: =SUM(NI12:NT12) -> 209 | NV12: =comptecouleurfond2(I12:O12,$D$11) -> 3 | NW12: =comptecouleurfond2(P12:V12,$D$11) -> 5 | NX12: =comptecouleurfond2(W12:AC12,$D$11) -> 4 | NY12: =comptecouleurfond2(AD12:AJ12,$D$11) -> 4 | NZ12: =comptecouleurfond2(AK12:AQ12,$D$11) -> 5 | OA12: =comptecouleurfond2(AR12:AX12,$D$11) -> 5 | OB12: =comptecouleurfond2(AY12:BE12,$D$11) -> 0 | OC12: =comptecouleurfond2(BF12:BL12,$D$11) -> 1 | OD12: =comptecouleurfond2(BM12:BS12,$D$11) -> 5 | OE12: =comptecouleurfond2(BT12:BZ12,$D$11) -> 5 | OF12: =comptecouleurfond2(CA12:CG12,$D$11) -> 4 | OG12: =comptecouleurfond2(CH12:CN12,$D$11) -> 4 | OH12: =comptecouleurfond2(CO12:CU12,$D$11) -> 4 | OI12: =comptecouleurfond2(CV12:DB12,$D$11) -> 5 | OJ12: =comptecouleurfond2(DC12:DI12,$D$11) -> 4 | OK12: =comptecouleurfond2(DJ12:DP12,$D$11) -> 3 | OL12: =comptecouleurfond2(DQ12:DW12,$D$11) -> 4 | OM12: =comptecouleurfond2(DX12:ED12,$D$11) -> 4 | ON12: =comptecouleurfond2(EE12:EK12,$D$11) -> 4 | OO12: =comptecouleurfond2(EL12:ER12,$D$11) -> 4 | OP12: =comptecouleurfond2(ES12:EY12,$D$11) -> 3 | OQ12: =comptecouleurfond2(EZ12:FF12,$D$11) -> 5 | OR12: =comptecouleurfond2(FG12:FM12,$D$11) -> 4 | OS12: =comptecouleurfond2(FN12:FT12,$D$11) -> 4 | OT12: =comptecouleurfond2(FU12:GA12,$D$11) -> 4 | OU12: =comptecouleurfond2(GB12:GH12,$D$11) -> 5 | OV12: =comptecouleurfond2(GI12:GO12,$D$11) -> 4 | OW12: =comptecouleurfond2(GP12:GV12,$D$11) -> 3 | OX12: =comptecouleurfond2(GW12:HC12,$D$11) -> 4 | OY12: =comptecouleurfond2(HD12:HJ12,$D$11) -> 5 | OZ12: =comptecouleurfond2(HK12:HQ12,$D$11) -> 4 | PA12: =comptecouleurfond2(HR12:HX12,$D$11) -> 4 | PB12: =comptecouleurfond2(HY12:IE12,$D$11) -> 3 | PC12: =comptecouleurfond2(IF12:IL12,$D$11) -> 5 | PD12: =comptecouleurfond2(IM12:IS12,$D$11) -> 4 | PE12: =comptecouleurfond2(IT12:IZ12,$D$11) -> 4 | PF12: =comptecouleurfond2(JA12:JG12,$D$11) -> 4 | PG12: =comptecouleurfond2(JH12:JN12,$D$11) -> 5 | PH12: =comptecouleurfond2(JO12:JU12,$D$11) -> 4 | PI12: =comptecouleurfond2(JV12:KB12,$D$11) -> 4 | PJ12: =comptecouleurfond2(KC12:KI12,$D$11) -> 4 | PK12: =comptecouleurfond2(KJ12:KP12,$D$11) -> 5 | PL12: =comptecouleurfond2(KQ12:KW12,$D$11) -> 4 | PM12: =comptecouleurfond2(KX12:LD12,$D$11) -> 4 | PN12: =comptecouleurfond2(LE12:LK12,$D$11) -> 4 | PO12: =comptecouleurfond2(LL12:LR12,$D$11) -> 5 | PP12: =comptecouleurfond2(LS12:LY12,$D$11) -> 4 | PQ12: =comptecouleurfond2(LZ12:MF12,$D$11) -> 4 | PR12: =comptecouleurfond2(MG12:MM12,$D$11) -> 4 | PS12: =comptecouleurfond2(MN12:MT12,$D$11) -> 5 | PT12: =comptecouleurfond2(MU12:NA12,$D$11) -> 4 | PU12: =comptecouleurfond2(NB12:NH12,$D$11) -> 3
A14: B | H14: H | I14: J | J14: 7 | K14: 21 | L14: J | M14: J | N14: R | O14: H | P14: K | Q14: K | R14: 68 | S14: K | T14: K | U14: R | V14: H | W14: J | X14: J | Y14: J | Z14: J | AA14: 7 | AB14: R | AC14: H | AD14: J | AE14: J | AF14: J | AG14: J | AH14: 7 | AI14: R | AJ14: H | AK14: 7 | AL14: 68 | AM14: J | AN14: J | AO14: J | AP14: R | AQ14: H | AR14: 68 | AS14: 68 | AT14: 68 | AU14: 68 | AV14: 68 | AW14: R | AX14: H | AY14: 68 | AZ14: 68 | BA14: 68 | BB14: 68 | BC14: 7 | BD14: R | BE14: H | BF14: J | BG14: J | BH14: 7 | BI14: J | BJ14: J | BK14: R | BL14: H | BM14: 7 | BN14: J | BO14: J | BP14: J | BQ14: J | BR14: R | BS14: H | BT14: K | BU14: K | BV14: J | BW14: K | BX14: K | BY14: R | BZ14: H | CA14: J | CB14: J | CC14: J | CD14: J | CE14: 7 | CF14: R | CG14: H | CH14: J | CI14: J | CJ14: 7 | CK14: J | CL14: J | CM14: R | CN14: H | CO14: 7 | CP14: J | CQ14: J | CR14: J | CS14: J | CT14: R | CU14: H | CV14: K | CW14: K | CX14: J | CY14: K | CZ14: K | DA14: R | DB14: H | DC14: J | DD14: J | DE14: J | DF14: J | DG14: 7 | DH14: R | DI14: H | DJ14: J | DK14: 68 | DL14: 7 | DM14: J | DN14: J | DO14: R | DP14: H | DQ14: 7 | DR14: J | DS14: J | DT14: J | DU14: J | DV14: R | DW14: H | DX14: K | DY14: K | DZ14: J | EA14: K | EB14: K | EC14: R | ED14: H | EE14: J | EF14: J | EG14: J | EH14: J | EI14: 7 | EJ14: R | EK14: H | EL14: J | EM14: J | EN14: 7 | EO14: J | EP14: J | EQ14: R | ER14: H | ES14: 7 | ET14: J | EU14: J | EV14: J | EW14: 68 | EX14: R | EY14: H | EZ14: K | FA14: K | FB14: J | FC14: K | FD14: K | FE14: R | FF14: H | FG14: J | FH14: J | FI14: J | FJ14: J | FK14: 7 | FL14: R | FM14: H | FN14: J | FO14: J | FP14: 7 | FQ14: J | FR14: J | FS14: R | FT14: H | FU14: 7 | FV14: J | FW14: J | FX14: J | FY14: J | FZ14: R | GA14: H | GB14: K | GC14: K | GD14: J | GE14: K | GF14: K | GG14: R | GH14: H | GI14: J | GJ14: J | GK14: J | GL14: J | GM14: 7 | GN14: R | GO14: H | GP14: J | GQ14: J | GR14: 7 | GS14: 68 | GT14: J | GU14: R | GV14: H | GW14: 7 | GX14: J | GY14: J | GZ14: J | HA14: J | HB14: R | HC14: H | HD14: K | HE14: K | HF14: J | HG14: K | HH14: K | HI14: R | HJ14: H | HK14: J | HL14: J | HM14: J | HN14: J | HO14: 7 | HP14: R | HQ14: H | HR14: J | HS14: J | HT14: 7 | HU14: J | HV14: J | HW14: R | HX14: H | HY14: 7 | HZ14: J | IA14: J | IB14: J | IC14: J | ID14: R | IE14: H | IF14: K | IG14: K | IH14: J | II14: K | IJ14: K | IK14: R | IL14: H | IM14: J | IN14: J | IO14: J | IP14: J | IQ14: 7 | IR14: R | IS14: H | IT14: J | IU14: J | IV14: 7 | IW14: J | IX14: J | IY14: R | IZ14: H | JA14: 7 | JB14: J | JC14: J | JD14: J | JE14: J | JF14: R | JG14: H | JH14: K | JI14: K | JJ14: J | JK14: K | JL14: K | JM14: R | JN14: H | JO14: J | JP14: J | JQ14: J | JR14: J | JS14: 7 | JT14: R | JU14: H | JV14: J | JW14: J | JX14: 7 | JY14: J | JZ14: J | KA14: R | KB14: H | KC14: 7 | KD14: J | KE14: J | KF14: J | KG14: J | KH14: R | KI14: H | KJ14: K | KK14: K | KL14: J | KM14: K | KN14: K | KO14: R | KP14: H | KQ14: J | KR14: J | KS14: J | KT14: J | KU14: 7 | KV14: R | KW14: H | KX14: J | KY14: J | KZ14: J | LA14: 68 | LB14: 7 | LC14: R | LD14: H | LE14: 7 | LF14: J | LG14: J | LH14: J | LI14: J | LJ14: R | LK14: H | LL14: K | LM14: K | LN14: J | LO14: K | LP14: K | LQ14: R | LR14: H | LS14: J | LT14: J | LU14: J | LV14: J | LW14: 7 | LX14: R | LY14: H | LZ14: J | MA14: J | MB14: 7 | MC14: J | MD14: J | ME14: R | MF14: H | MG14: 7 | MH14: J | MI14: J | MJ14: J | MK14: J | ML14: R | MM14: H | MN14: K | MO14: K | MP14: J | MQ14: K | MR14: K | MS14: R | MT14: H | MU14: J | MV14: J | MW14: J | MX14: J | MY14: 7 | MZ14: R | NA14: H | NB14: J | NC14: J | ND14: 7 | NE14: J | NF14: J | NG14: R | NH14: H | NI14: =comptecouleurfond2($H14:$AL14,$D$11) -> 14 | NJ14: =comptecouleurfond2($AM14:$BN14,$D$11) -> 8 | NK14: =comptecouleurfond2($BO14:$CS14,$D$11) -> 20 | NL14: =comptecouleurfond2($CT14:$DW14,$D$11) -> 15 | NM14: =comptecouleurfond2($DX14:$FB14,$D$11) -> 16 | NN14: =comptecouleurfond2($FC14:$GF14,$D$11) -> 18 | NO14: =comptecouleurfond2($GG14:$HK14,$D$11) -> 16 | NP14: =comptecouleurfond2($HL14:$IP14,$D$11) -> 19 | NQ14: =comptecouleurfond2($IQ14:$JT14,$D$11) -> 17 | NR14: =comptecouleurfond2($JU14:$KY14,$D$11) -> 19 | NS14: =comptecouleurfond2($KZ14:$MC14,$D$11) -> 16 | NT14: =comptecouleurfond2($MD14:$NH14,$D$11) -> 17 | NU14: =SUM(NI14:NT14) -> 195 | NV14: =comptecouleurfond2(I14:O14,$D$11) -> 2 | NW14: =comptecouleurfond2(P14:V14,$D$11) -> 4 | NX14: =comptecouleurfond2(W14:AC14,$D$11) -> 4 | NY14: =comptecouleurfond2(AD14:AJ14,$D$11) -> 4 | NZ14: =comptecouleurfond2(AK14:AQ14,$D$11) -> 3 | OA14: =comptecouleurfond2(AR14:AX14,$D$11) -> 0 | OB14: =comptecouleurfond2(AY14:BE14,$D$11) -> 0 | OC14: =comptecouleurfond2(BF14:BL14,$D$11) -> 4 | OD14: =comptecouleurfond2(BM14:BS14,$D$11) -> 4 | OE14: =comptecouleurfond2(BT14:BZ14,$D$11) -> 5 | OF14: =comptecouleurfond2(CA14:CG14,$D$11) -> 4 | OG14: =comptecouleurfond2(CH14:CN14,$D$11) -> 4 | OH14: =comptecouleurfond2(CO14:CU14,$D$11) -> 4 | OI14: =comptecouleurfond2(CV14:DB14,$D$11) -> 5 | OJ14: =comptecouleurfond2(DC14:DI14,$D$11) -> 4 | OK14: =comptecouleurfond2(DJ14:DP14,$D$11) -> 2 | OL14: =comptecouleurfond2(DQ14:DW14,$D$11) -> 4 | OM14: =comptecouleurfond2(DX14:ED14,$D$11) -> 4 | ON14: =comptecouleurfond2(EE14:EK14,$D$11) -> 3 | OO14: =comptecouleurfond2(EL14:ER14,$D$11) -> 4 | OP14: =comptecouleurfond2(ES14:EY14,$D$11) -> 2 | OQ14: =comptecouleurfond2(EZ14:FF14,$D$11) -> 5 | OR14: =comptecouleurfond2(FG14:FM14,$D$11) -> 3 | OS14: =comptecouleurfond2(FN14:FT14,$D$11) -> 4 | OT14: =comptecouleurfond2(FU14:GA14,$D$11) -> 4 | OU14: =comptecouleurfond2(GB14:GH14,$D$11) -> 5 | OV14: =comptecouleurfond2(GI14:GO14,$D$11) -> 4 | OW14: =comptecouleurfond2(GP14:GV14,$D$11) -> 2 | OX14: =comptecouleurfond2(GW14:HC14,$D$11) -> 4 | OY14: =comptecouleurfond2(HD14:HJ14,$D$11) -> 5 | OZ14: =comptecouleurfond2(HK14:HQ14,$D$11) -> 4 | PA14: =comptecouleurfond2(HR14:HX14,$D$11) -> 4 | PB14: =comptecouleurfond2(HY14:IE14,$D$11) -> 3 | PC14: =comptecouleurfond2(IF14:IL14,$D$11) -> 5 | PD14: =comptecouleurfond2(IM14:IS14,$D$11) -> 4 | PE14: =comptecouleurfond2(IT14:IZ14,$D$11) -> 4 | PF14: =comptecouleurfond2(JA14:JG14,$D$11) -> 4 | PG14: =comptecouleurfond2(JH14:JN14,$D$11) -> 5 | PH14: =comptecouleurfond2(JO14:JU14,$D$11) -> 4 | PI14: =comptecouleurfond2(JV14:KB14,$D$11) -> 4 | PJ14: =comptecouleurfond2(KC14:KI14,$D$11) -> 4 | PK14: =comptecouleurfond2(KJ14:KP14,$D$11) -> 5 | PL14: =comptecouleurfond2(KQ14:KW14,$D$11) -> 4 | PM14: =comptecouleurfond2(KX14:LD14,$D$11) -> 2 | PN14: =comptecouleurfond2(LE14:LK14,$D$11) -> 4 | PO14: =comptecouleurfond2(LL14:LR14,$D$11) -> 5 | PP14: =comptecouleurfond2(LS14:LY14,$D$11) -> 4 | PQ14: =comptecouleurfond2(LZ14:MF14,$D$11) -> 4 | PR14: =comptecouleurfond2(MG14:MM14,$D$11) -> 4 | PS14: =comptecouleurfond2(MN14:MT14,$D$11) -> 5 | PT14: =comptecouleurfond2(MU14:NA14,$D$11) -> 4 | PU14: =comptecouleurfond2(NB14:NH14,$D$11) -> 3
A16: C | H16: H | I16: J | J16: 41 | K16: 41 | L16: 41 | M16: 41 | N16: R | O16: H | P16: 7 | Q16: K | R16: K | S16: K | T16: K | U16: R | V16: H | W16: J | X16: J | Y16: 7 | Z16: J | AA16: J | AB16: R | AC16: H | AD16: J | AE16: J | AF16: J | AG16: J | AH16: 7 | AI16: R | AJ16: H | AK16: J | AL16: J | AM16: J | AN16: J | AO16: J | AP16: R | AQ16: H | AR16: 7 | AS16: K | AT16: K | AU16: K | AV16: K | AW16: R | AX16: H | AY16: J | AZ16: J | BA16: 7 | BB16: J | BC16: J | BD16: R | BE16: H | BF16: J | BG16: J | BH16: J | BI16: J | BJ16: 7 | BK16: R | BL16: H | BM16: J | BN16: J | BO16: J | BP16: J | BQ16: J | BR16: R | BS16: H | BT16: 7 | BU16: K | BV16: K | BW16: K | BX16: K | BY16: R | BZ16: H | CA16: J | CB16: J | CC16: 7 | CD16: J | CE16: J | CF16: R | CG16: H | CH16: J | CI16: J | CJ16: J | CK16: J | CL16: 7 | CM16: R | CN16: H | CO16: J | CP16: J | CQ16: J | CR16: J | CS16: J | CT16: R | CU16: H | CV16: 7 | CW16: K | CX16: K | CY16: K | CZ16: K | DA16: R | DB16: H | DC16: J | DD16: J | DE16: 7 | DF16: J | DG16: J | DH16: R | DI16: H | DJ16: J | DK16: J | DL16: J | DM16: J | DN16: 7 | DO16: R | DP16: H | DQ16: J | DR16: J | DS16: J | DT16: J | DU16: J | DV16: R | DW16: H | DX16: 7 | DY16: K | DZ16: K | EA16: K | EB16: K | EC16: R | ED16: H | EE16: J | EF16: J | EG16: 7 | EH16: J | EI16: J | EJ16: R | EK16: H | EL16: J | EM16: J | EN16: J | EO16: J | EP16: 7 | EQ16: R | ER16: H | ES16: J | ET16: J | EU16: J | EV16: J | EW16: J | EX16: R | EY16: H | EZ16: 7 | FA16: K | FB16: K | FC16: K | FD16: K | FE16: R | FF16: H | FG16: J | FH16: J | FI16: 7 | FJ16: J | FK16: J | FL16: R | FM16: H | FN16: J | FO16: J | FP16: J | FQ16: J | FR16: 7 | FS16: R | FT16: H | FU16: J | FV16: J | FW16: J | FX16: J | FY16: J | FZ16: R | GA16: H | GB16: 7 | GC16: K | GD16: K | GE16: K | GF16: K | GG16: R | GH16: H | GI16: J | GJ16: J | GK16: 7 | GL16: J | GM16: J | GN16: R | GO16: H | GP16: J | GQ16: J | GR16: J | GS16: J | GT16: 7 | GU16: R | GV16: H | GW16: J | GX16: J | GY16: J | GZ16: J | HA16: J | HB16: R | HC16: H | HD16: 7 | HE16: K | HF16: K | HG16: K | HH16: K | HI16: R | HJ16: H | HK16: J | HL16: J | HM16: 7 | HN16: J | HO16: J | HP16: R | HQ16: H | HR16: J | HS16: J | HT16: J | HU16: J | HV16: 7 | HW16: R | HX16: H | HY16: J | HZ16: J | IA16: J | IB16: J | IC16: J | ID16: R | IE16: H | IF16: 7 | IG16: K | IH16: K | II16: K | IJ16: K | IK16: R | IL16: H | IM16: J | IN16: J | IO16: 7 | IP16: J | IQ16: J | IR16: R | IS16: H | IT16: J | IU16: J | IV16: J | IW16: J | IX16: 7 | IY16: R | IZ16: H | JA16: J | JB16: J | JC16: J | JD16: J | JE16: J | JF16: R | JG16: H | JH16: 7 | JI16: K | JJ16: K | JK16: K | JL16: K | JM16: R | JN16: H | JO16: J | JP16: J | JQ16: 7 | JR16: J | JS16: J | JT16: R | JU16: H | JV16: J | JW16: J | JX16: J | JY16: J | JZ16: 7 | KA16: R | KB16: H | KC16: J | KD16: J | KE16: J | KF16: J | KG16: J | KH16: R | KI16: H | KJ16: 7 | KK16: K | KL16: K | KM16: K | KN16: K | KO16: R | KP16: H | KQ16: J | KR16: J | KS16: 7 | KT16: J | KU16: J | KV16: R | KW16: H | KX16: J | KY16: J | KZ16: J | LA16: J | LB16: 7 | LC16: R | LD16: H | LE16: J | LF16: J | LG16: J | LH16: J | LI16: J | LJ16: R | LK16: H | LL16: 7 | LM16: K | LN16: K | LO16: K | LP16: K | LQ16: R | LR16: H | LS16: J | LT16: J | LU16: 7 | LV16: J | LW16: J | LX16: R | LY16: H | LZ16: J | MA16: J | MB16: J | MC16: J | MD16: 7 | ME16: R | MF16: H | MG16: J | MH16: J | MI16: J | MJ16: J | MK16: J | ML16: R | MM16: H | MN16: 7 | MO16: K | MP16: K | MQ16: K | MR16: K | MS16: R | MT16: H | MU16: J | MV16: J | MW16: 7 | MX16: J | MY16: J | MZ16: R | NA16: H | NB16: J | NC16: J | ND16: J | NE16: J | NF16: 7 | NG16: R | NH16: H | NI16: =comptecouleurfond2($H16:$AL16,$D$11) -> 14 | NJ16: =comptecouleurfond2($AM16:$BN16,$D$11) -> 17 | NK16: =comptecouleurfond2($BO16:$CS16,$D$11) -> 20 | NL16: =comptecouleurfond2($CT16:$DW16,D11) -> 16 | NM16: =comptecouleurfond2($DX16:$FB16,$D$11) -> 17 | NN16: =comptecouleurfond2($FC16:$GF16,$D$11) -> 18 | NO16: =comptecouleurfond2($GG16:$HK16,$D$11) -> 18 | NP16: =comptecouleurfond2($HL16:$IP16,$D$11) -> 18 | NQ16: =comptecouleurfond2($IQ16:$JT16,$D$11) -> 18 | NR16: =comptecouleurfond2($JU16:$KY16,$D$11) -> 19 | NS16: =comptecouleurfond2($KZ16:$MC16,D11) -> 18 | NT16: =comptecouleurfond2($MD16:$NH16,D11) -> 16 | NU16: =SUM(NI16:NT16) -> 209 | NV16: 0 | NW16: 4 | NX16: 4 | NY16: 4 | NZ16: 5 | OA16: 4 | OB16: 4 | OC16: 4 | OD16: 5 | OE16: 4 | OF16: 4 | OG16: 4 | OH16: 5 | OI16: 4 | OJ16: 4 | OK16: 3 | OL16: 5 | OM16: 4 | ON16: 3 | OO16: 4 | OP16: 4 | OQ16: 4 | OR16: 3 | OS16: 4 | OT16: 5 | OU16: 4 | OV16: 4 | OW16: 4 | OX16: 5 | OY16: 4 | OZ16: 4 | PA16: 4 | PB16: 4 | PC16: 4 | PD16: 4 | PE16: 4 | PF16: 5 | PG16: 4 | PH16: 4 | PI16: 4 | PJ16: 5 | PK16: 4 | PL16: 4 | PM16: 3 | PN16: 5 | PO16: 4 | PP16: 4 | PQ16: 4 | PR16: 5 | PS16: 4 | PT16: 4 | PU16: 3
A18: D | H18: H | I18: 7 | J18: K | K18: K | L18: K | M18: K | N18: R | O18: H | P18: J | Q18: J | R18: J | S18: J | T18: 7 | U18: R | V18: H | W18: J | X18: J | Y18: 7 | Z18: J | AA18: J | AB18: R | AC18: H | AD18: J | AE18: J | AF18: J | AG18: J | AH18: J | AI18: R | AJ18: H | AK18: 7 | AL18: K | AM18: K | AN18: K | AO18: K | AP18: R | AQ18: H | AR18: J | AS18: J | AT18: J | AU18: J | AV18: 7 | AW18: R | AX18: H | AY18: J | AZ18: J | BA18: 7 | BB18: J | BC18: J | BD18: R | BE18: H | BF18: J | BG18: J | BH18: J | BI18: J | BJ18: J | BK18: R | BL18: H | BM18: 7 | BN18: K | BO18: K | BP18: K | BQ18: K | BR18: R | BS18: H | BT18: J | BU18: J | BV18: J | BW18: J | BX18: 7 | BY18: R | BZ18: H | CA18: J | CB18: J | CC18: 7 | CD18: J | CE18: J | CF18: R | CG18: H | CH18: J | CI18: J | CJ18: J | CK18: J | CL18: J | CM18: R | CN18: H | CO18: 7 | CP18: K | CQ18: K | CR18: K | CS18: K | CT18: R | CU18: H | CV18: J | CW18: J | CX18: J | CY18: J | CZ18: 7 | DA18: R | DB18: H | DC18: J | DD18: J | DE18: 7 | DF18: J | DG18: J | DH18: R | DI18: H | DJ18: J | DK18: J | DL18: J | DM18: J | DN18: J | DO18: R | DP18: H | DQ18: 7 | DR18: K | DS18: K | DT18: K | DU18: K | DV18: R | DW18: H | DX18: J | DY18: J | DZ18: J | EA18: J | EB18: 7 | EC18: R | ED18: H | EE18: J | EF18: J | EG18: 7 | EH18: J | EI18: J | EJ18: R | EK18: H | EL18: J | EM18: J | EN18: J | EO18: J | EP18: J | EQ18: R | ER18: H | ES18: 7 | ET18: K | EU18: K | EV18: K | EW18: K | EX18: R | EY18: H | EZ18: J | FA18: J | FB18: J | FC18: J | FD18: 7 | FE18: R | FF18: H | FG18: J | FH18: J | FI18: 7 | FJ18: J | FK18: J | FL18: R | FM18: H | FN18: J | FO18: J | FP18: J | FQ18: J | FR18: J | FS18: R | FT18: H | FU18: 7 | FV18: K | FW18: K | FX18: K | FY18: K | FZ18: R | GA18: H | GB18: J | GC18: J | GD18: J | GE18: J | GF18: 7 | GG18: R | GH18: H | GI18: J | GJ18: J | GK18: 7 | GL18: J | GM18: J | GN18: R | GO18: H | GP18: J | GQ18: J | GR18: J | GS18: J | GT18: J | GU18: R | GV18: H | GW18: 7 | GX18: K | GY18: K | GZ18: K | HA18: K | HB18: R | HC18: H | HD18: J | HE18: J | HF18: J | HG18: J | HH18: 7 | HI18: R | HJ18: H | HK18: J | HL18: J | HM18: 7 | HN18: J | HO18: J | HP18: R | HQ18: H | HR18: J | HS18: J | HT18: J | HU18: J | HV18: J | HW18: R | HX18: H | HY18: 7 | HZ18: K | IA18: K | IB18: K | IC18: K | ID18: R | IE18: H | IF18: J | IG18: J | IH18: J | II18: J | IJ18: 7 | IK18: R | IL18: H | IM18: J | IN18: J | IO18: 7 | IP18: J | IQ18: J | IR18: R | IS18: H | IT18: J | IU18: J | IV18: J | IW18: J | IX18: J | IY18: R | IZ18: H | JA18: 7 | JB18: K | JC18: K | JD18: K | JE18: K | JF18: R | JG18: H | JH18: J | JI18: J | JJ18: J | JK18: J | JL18: 7 | JM18: R | JN18: H | JO18: J | JP18: J | JQ18: 7 | JR18: J | JS18: J | JT18: R | JU18: H | JV18: J | JW18: J | JX18: J | JY18: J | JZ18: J | KA18: R | KB18: H | KC18: 7 | KD18: K | KE18: K | KF18: K | KG18: K | KH18: R | KI18: H | KJ18: J | KK18: J | KL18: J | KM18: J | KN18: 7 | KO18: R | KP18: H | KQ18: J | KR18: J | KS18: 7 | KT18: J | KU18: J | KV18: R | KW18: H | KX18: J | KY18: J | KZ18: J | LA18: J | LB18: J | LC18: R | LD18: H | LE18: 7 | LF18: K | LG18: K | LH18: K | LI18: K | LJ18: R | LK18: H | LL18: J | LM18: J | LN18: J | LO18: J | LP18: 7 | LQ18: R | LR18: H | LS18: J | LT18: J | LU18: 7 | LV18: J | LW18: J | LX18: R | LY18: H | LZ18: J | MA18: J | MB18: J | MC18: J | MD18: J | ME18: R | MF18: H | MG18: 7 | MH18: K | MI18: K | MJ18: K | MK18: K | ML18: R | MM18: H | MN18: J | MO18: J | MP18: J | MQ18: J | MR18: 7 | MS18: R | MT18: H | MU18: J | MV18: J | MW18: 7 | MX18: J | MY18: J | MZ18: R | NA18: H | NB18: J | NC18: J | ND18: J | NE18: J | NF18: J | NG18: R | NH18: H | NI18: =comptecouleurfond2($H18:$AL18,$D$11) -> 18 | NJ18: =comptecouleurfond2($AM18:$BN18,$D$11) -> 17 | NK18: =comptecouleurfond2($BO18:$CS18,$D$11) -> 20 | NL18: =comptecouleurfond2($CT18:$DW18,D11) -> 16 | NM18: =comptecouleurfond2($DX18:$FB18,$D$11) -> 17 | NN18: =comptecouleurfond2($FC18:$GF18,$D$11) -> 17 | NO18: =comptecouleurfond2($GG18:$HK18,$D$11) -> 17 | NP18: =comptecouleurfond2($HL18:$IP18,$D$11) -> 18 | NQ18: =comptecouleurfond2($IQ18:$JT18,$D$11) -> 18 | NR18: =comptecouleurfond2($JU18:$KY18,K17) -> 19 | NS18: =comptecouleurfond2($KZ18:$MC18,K17) -> 18 | NT18: =comptecouleurfond2($MD18:$NH18,K17) -> 17 | NU18: =SUM(NI18:NT18) -> 212 | NV18: 4 | NW18: 4 | NX18: 4 | NY18: 5 | NZ18: 4 | OA18: 4 | OB18: 4 | OC18: 5 | OD18: 4 | OE18: 4 | OF18: 4 | OG18: 5 | OH18: 4 | OI18: 4 | OJ18: 4 | OK18: 4 | OL18: 4 | OM18: 3 | ON18: 3 | OO18: 5 | OP18: 3 | OQ18: 4 | OR18: 3 | OS18: 5 | OT18: 4 | OU18: 4 | OV18: 4 | OW18: 4 | OX18: 4 | OY18: 4 | OZ18: 4 | PA18: 5 | PB18: 3 | PC18: 4 | PD18: 4 | PE18: 5 | PF18: 4 | PG18: 4 | PH18: 4 | PI18: 5 | PJ18: 4 | PK18: 4 | PL18: 4 | PM18: 4 | PN18: 4 | PO18: 4 | PP18: 4 | PQ18: 5 | PR18: 4 | PS18: 4 | PT18: 4 | PU18: 4
A20: E | H20: H | I20: K | J20: 7 | K20: K | L20: K | M20: K | N20: R | O20: H | P20: J | Q20: J | R20: J | S20: J | T20: J | U20: R | V20: H | W20: J | X20: J | Y20: J | Z20: J | AA20: 7 | AB20: R | AC20: H | AD20: J | AE20: J | AF20: 7 | AG20: J | AH20: J | AI20: R | AJ20: H | AK20: 7 | AL20: K | AM20: K | AN20: K | AO20: K | AP20: R | AQ20: H | AR20: J | AS20: J | AT20: J | AU20: J | AV20: J | AW20: R | AX20: H | AY20: J | AZ20: J | BA20: J | BB20: J | BC20: 7 | BD20: R | BE20: H | BF20: J | BG20: J | BH20: 7 | BI20: J | BJ20: J | BK20: R | BL20: H | BM20: 7 | BN20: K | BO20: K | BP20: K | BQ20: K | BR20: R | BS20: H | BT20: J | BU20: J | BV20: J | BW20: J | BX20: J | BY20: R | BZ20: H | CA20: J | CB20: J | CC20: 10 | CD20: 10 | CE20: 7 | CF20: R | CG20: H | CH20: 21 | CI20: 21 | CJ20: 7 | CK20: 21 | CL20: 20 | CM20: R | CN20: H | CO20: 7 | CP20: K | CQ20: K | CR20: K | CS20: K | CT20: R | CU20: H | CV20: J | CW20: J | CX20: J | CY20: J | CZ20: J | DA20: R | DB20: H | DC20: J | DD20: J | DE20: J | DF20: J | DG20: 7 | DH20: R | DI20: H | DJ20: J | DK20: J | DL20: 7 | DM20: J | DN20: J | DO20: R | DP20: H | DQ20: 7 | DR20: K | DS20: K | DT20: K | DU20: K | DV20: R | DW20: H | DX20: J | DY20: J | DZ20: J | EA20: J | EB20: J | EC20: R | ED20: H | EE20: J | EF20: J | EG20: J | EH20: J | EI20: 7 | EJ20: R | EK20: H | EL20: J | EM20: J | EN20: 7 | EO20: J | EP20: J | EQ20: R | ER20: H | ES20: 7 | ET20: K | EU20: K | EV20: K | EW20: K | EX20: R | EY20: H | EZ20: J | FA20: J | FB20: J | FC20: J | FD20: J | FE20: R | FF20: H | FG20: J | FH20: J | FI20: J | FJ20: J | FK20: 7 | FL20: R | FM20: H | FN20: J | FO20: J | FP20: 7 | FQ20: J | FR20: J | FS20: R | FT20: H | FU20: 7 | FV20: K | FW20: K | FX20: K | FY20: K | FZ20: R | GA20: H | GB20: J | GC20: J | GD20: J | GE20: J | GF20: J | GG20: R | GH20: H | GI20: J | GJ20: J | GK20: J | GL20: J | GM20: 7 | GN20: R | GO20: H | GP20: J | GQ20: J | GR20: 7 | GS20: J | GT20: J | GU20: R | GV20: H | GW20: 7 | GX20: K | GY20: K | GZ20: K | HA20: K | HB20: R | HC20: H | HD20: J | HE20: J | HF20: J | HG20: J | HH20: J | HI20: R | HJ20: H | HK20: J | HL20: J | HM20: J | HN20: J | HO20: 7 | HP20: R | HQ20: H | HR20: J | HS20: J | HT20: 7 | HU20: J | HV20: J | HW20: R | HX20: H | HY20: 7 | HZ20: K | IA20: K | IB20: K | IC20: K | ID20: R | IE20: H | IF20: J | IG20: J | IH20: J | II20: J | IJ20: J | IK20: R | IL20: H | IM20: J | IN20: J | IO20: J | IP20: J | IQ20: 7 | IR20: R | IS20: H | IT20: J | IU20: J | IV20: 7 | IW20: J | IX20: J | IY20: R | IZ20: H | JA20: 7 | JB20: K | JC20: K | JD20: K | JE20: K | JF20: R | JG20: H | JH20: J | JI20: J | JJ20: J | JK20: J | JL20: J | JM20: R | JN20: H | JO20: J | JP20: J | JQ20: J | JR20: J | JS20: 7 | JT20: R | JU20: H | JV20: J | JW20: J | JX20: 7 | JY20: J | JZ20: J | KA20: R | KB20: H | KC20: 7 | KD20: K | KE20: K | KF20: K | KG20: K | KH20: R | KI20: H | KJ20: J | KK20: J | KL20: J | KM20: J | KN20: J | KO20: R | KP20: H | KQ20: J | KR20: J | KS20: J | KT20: J | KU20: 7 | KV20: R | KW20: H | KX20: J | KY20: J | KZ20: 7 | LA20: J | LB20: J | LC20: R | LD20: H | LE20: 7 | LF20: K | LG20: K | LH20: K | LI20: K | LJ20: R | LK20: H | LL20: J | LM20: J | LN20: J | LO20: J | LP20: J | LQ20: R | LR20: H | LS20: J | LT20: J | LU20: J | LV20: J | LW20: 7 | LX20: R | LY20: H | LZ20: J | MA20: J | MB20: J | MC20: J | MD20: 7 | ME20: R | MF20: H | MG20: 7 | MH20: K | MI20: K | MJ20: K | MK20: K | ML20: R | MM20: H | MN20: J | MO20: J | MP20: J | MQ20: J | MR20: J | MS20: R | MT20: H | MU20: J | MV20: J | MW20: J | MX20: J | MY20: 7 | MZ20: R | NA20: H | NB20: J | NC20: J | ND20: 7 | NE20: J | NF20: J | NG20: R | NH20: H | NI20: =comptecouleurfond2($H20:$AL20,$D$11) -> 17 | NJ20: =comptecouleurfond2($AM20:$BN20,$D$11) -> 17 | NK20: =comptecouleurfond2($BO20:$CS20,$D$11) -> 14 | NL20: =comptecouleurfond2($CT20:$DW20,D11) -> 16 | NM20: =comptecouleurfond2($DX20:$FB20,$D$11) -> 17 | NN20: =comptecouleurfond2($FC20:$GF20,$D$11) -> 18 | NO20: =comptecouleurfond2($GG20:$HK20,$D$11) -> 17 | NP20: =comptecouleurfond2($HL20:$IP20,$D$11) -> 19 | NQ20: =comptecouleurfond2($IQ20:$JT20,$D$11) -> 17 | NR20: =comptecouleurfond2($JU20:$KY20,K19) -> 19 | NS20: =comptecouleurfond2($KZ20:$MC20,K19) -> 19 | NT20: =comptecouleurfond2($MD20:$NH20,K19) -> 16 | NU20: =SUM(NI20:NT20) -> 206 | NV20: 3 | NW20: 5 | NX20: 4 | NY20: 4 | NZ20: 4 | OA20: 5 | OB20: 4 | OC20: 4 | OD20: 4 | OE20: 5 | OF20: 2 | OG20: 0 | OH20: 4 | OI20: 5 | OJ20: 4 | OK20: 3 | OL20: 4 | OM20: 4 | ON20: 3 | OO20: 4 | OP20: 3 | OQ20: 5 | OR20: 3 | OS20: 4 | OT20: 4 | OU20: 5 | OV20: 4 | OW20: 3 | OX20: 4 | OY20: 5 | OZ20: 4 | PA20: 4 | PB20: 3 | PC20: 5 | PD20: 4 | PE20: 4 | PF20: 4 | PG20: 5 | PH20: 4 | PI20: 4 | PJ20: 4 | PK20: 5 | PL20: 4 | PM20: 4 | PN20: 4 | PO20: 5 | PP20: 4 | PQ20: 4 | PR20: 4 | PS20: 5 | PT20: 4 | PU20: 3
AB21: ='OUTILS Export PGI'!NR26 -> 12
A22: F | H22: H | I22: K | J22: J | K22: J | L22: J | M22: J | N22: R | O22: H | P22: K | Q22: J | R22: 7 | S22: J | T22: J | U22: R | V22: H | W22: K | X22: J | Y22: J | Z22: J | AA22: 7 | AB22: R | AC22: H | AD22: 7 | AE22: K | AF22: J | AG22: J | AH22: J | AI22: R | AJ22: H | AK22: K | AL22: J | AM22: J | AN22: J | AO22: J | AP22: R | AQ22: H | AR22: K | AS22: J | AT22: 7 | AU22: J | AV22: J | AW22: R | AX22: H | AY22: K | AZ22: J | BA22: J | BB22: J | BC22: 7 | BD22: R | BE22: H | BF22: 7 | BG22: K | BH22: J | BI22: J | BJ22: J | BK22: R | BL22: H | BM22: K | BN22: J | BO22: J | BP22: J | BQ22: J | BR22: R | BS22: H | BT22: K | BU22: J | BV22: 7 | BW22: J | BX22: J | BY22: R | BZ22: H | CA22: K | CB22: J | CC22: J | CD22: J | CE22: 7 | CF22: R | CG22: H | CH22: 7 | CI22: K | CJ22: J | CK22: J | CL22: J | CM22: R | CN22: H | CO22: K | CP22: J | CQ22: J | CR22: J | CS22: J | CT22: R | CU22: H | CV22: K | CW22: J | CX22: 7 | CY22: J | CZ22: J | DA22: R | DB22: H | DC22: K | DD22: J | DE22: J | DF22: J | DG22: 7 | DH22: R | DI22: H | DJ22: 7 | DK22: K | DL22: J | DM22: J | DN22: J | DO22: R | DP22: H | DQ22: K | DR22: J | DS22: J | DT22: J | DU22: J | DV22: R | DW22: H | DX22: K | DY22: J | DZ22: 7 | EA22: J | EB22: J | EC22: R | ED22: H | EE22: K | EF22: J | EG22: J | EH22: J | EI22: 7 | EJ22: R | EK22: H | EL22: 7 | EM22: K | EN22: J | EO22: J | EP22: J | EQ22: R | ER22: H | ES22: K | ET22: J | EU22: J | EV22: J | EW22: J | EX22: R | EY22: H | EZ22: K | FA22: J | FB22: 7 | FC22: J | FD22: J | FE22: R | FF22: H | FG22: K | FH22: J | FI22: J | FJ22: J | FK22: 7 | FL22: R | FM22: H | FN22: 7 | FO22: K | FP22: J | FQ22: J | FR22: J | FS22: R | FT22: H | FU22: K | FV22: J | FW22: J | FX22: J | FY22: J | FZ22: R | GA22: H | GB22: K | GC22: J | GD22: 7 | GE22: J | GF22: J | GG22: R | GH22: H | GI22: K | GJ22: J | GK22: J | GL22: J | GM22: 7 | GN22: R | GO22: H | GP22: 7 | GQ22: K | GR22: J | GS22: J | GT22: J | GU22: R | GV22: H | GW22: K | GX22: J | GY22: J | GZ22: J | HA22: J | HB22: R | HC22: H | HD22: K | HE22: J | HF22: 7 | HG22: J | HH22: J | HI22: R | HJ22: H | HK22: K | HL22: J | HM22: J | HN22: J | HO22: 7 | HP22: R | HQ22: H | HR22: 7 | HS22: K | HT22: J | HU22: J | HV22: J | HW22: R | HX22: H | HY22: K | HZ22: J | IA22: J | IB22: J | IC22: J | ID22: R | IE22: H | IF22: K | IG22: J | IH22: 7 | II22: J | IJ22: J | IK22: R | IL22: H | IM22: K | IN22: J | IO22: J | IP22: J | IQ22: 7 | IR22: R | IS22: H | IT22: 7 | IU22: K | IV22: J | IW22: J | IX22: J | IY22: R | IZ22: H | JA22: K | JB22: J | JC22: J | JD22: J | JE22: J | JF22: R | JG22: H | JH22: K | JI22: J | JJ22: 7 | JK22: J | JL22: J | JM22: R | JN22: H | JO22: K | JP22: J | JQ22: J | JR22: J | JS22: 7 | JT22: R | JU22: H | JV22: 7 | JW22: K | JX22: J | JY22: J | JZ22: J | KA22: R | KB22: H | KC22: K | KD22: J | KE22: J | KF22: J | KG22: J | KH22: R | KI22: H | KJ22: K | KK22: J | KL22: 7 | KM22: J | KN22: J | KO22: R | KP22: H | KQ22: K | KR22: J | KS22: J | KT22: J | KU22: 7 | KV22: R | KW22: H | KX22: 7 | KY22: K | KZ22: J | LA22: J | LB22: J | LC22: R | LD22: H | LE22: K | LF22: J | LG22: J | LH22: J | LI22: J | LJ22: R | LK22: H | LL22: K | LM22: J | LN22: 7 | LO22: J | LP22: J | LQ22: R | LR22: H | LS22: K | LT22: J | LU22: J | LV22: J | LW22: 7 | LX22: R | LY22: H | LZ22: 7 | MA22: K | MB22: J | MC22: J | MD22: J | ME22: R | MF22: H | MG22: K | MH22: J | MI22: J | MJ22: J | MK22: J | ML22: R | MM22: H | MN22: K | MO22: J | MP22: 7 | MQ22: J | MR22: J | MS22: R | MT22: H | MU22: K | MV22: J | MW22: J | MX22: J | MY22: 7 | MZ22: R | NA22: H | NB22: 7 | NC22: K | ND22: J | NE22: J | NF22: J | NG22: R | NH22: H | NI22: =comptecouleurfond2($H22:$AL22,$D$11) -> 18 | NJ22: =comptecouleurfond2($AM22:$BN22,$D$11) -> 17 | NK22: =comptecouleurfond2($BO22:$CS22,$D$11) -> 20 | NL22: =comptecouleurfond2($CT22:$DW22,D11) -> 17 | NM22: =comptecouleurfond2($DX22:$FB22,$D$11) -> 16 | NN22: =comptecouleurfond2($FC22:$GF22,$D$11) -> 18 | NO22: =comptecouleurfond2($GG22:$HK22,$D$11) -> 17 | NP22: =comptecouleurfond2($HL22:$IP22,$D$11) -> 19 | NQ22: =comptecouleurfond2($IQ22:$JT22,$D$11) -> 17 | NR22: =comptecouleurfond2($JU22:$KY22,K21) -> 18 | NS22: =comptecouleurfond2($KZ22:$MC22,K21) -> 18 | NT22: =comptecouleurfond2($MD22:$NH22,K21) -> 18 | NU22: =SUM(NI22:NT22) -> 213 | NV22: 4 | NW22: 4 | NX22: 4 | NY22: 4 | NZ22: 5 | OA22: 4 | OB22: 4 | OC22: 4 | OD22: 5 | OE22: 4 | OF22: 4 | OG22: 4 | OH22: 5 | OI22: 4 | OJ22: 4 | OK22: 4 | OL22: 5 | OM22: 3 | ON22: 3 | OO22: 4 | OP22: 4 | OQ22: 4 | OR22: 3 | OS22: 4 | OT22: 5 | OU22: 4 | OV22: 4 | OW22: 3 | OX22: 5 | OY22: 4 | OZ22: 4 | PA22: 4 | PB22: 4 | PC22: 4 | PD22: 4 | PE22: 4 | PF22: 5 | PG22: 4 | PH22: 4 | PI22: 4 | PJ22: 5 | PK22: 4 | PL22: 4 | PM22: 3 | PN22: 5 | PO22: 4 | PP22: 4 | PQ22: 4 | PR22: 5 | PS22: 4 | PT22: 4 | PU22: 4
A24: G | H24: H | I24: K | J24: 20 | K24: 7 | L24: J | M24: J | N24: R | O24: H | P24: 7 | Q24: J | R24: J | S24: J | T24: J | U24: R | V24: H | W24: K | X24: J | Y24: K | Z24: J | AA24: 7 | AB24: R | AC24: H | AD24: K | AE24: J | AF24: J | AG24: J | AH24: J | AI24: R | AJ24: H | AK24: K | AL24: J | AM24: 7 | AN24: J | AO24: J | AP24: R | AQ24: H | AR24: 7 | AS24: J | AT24: J | AU24: J | AV24: J | AW24: R | AX24: H | AY24: K | AZ24: J | BA24: K | BB24: J | BC24: 7 | BD24: R | BE24: H | BF24: K | BG24: J | BH24: J | BI24: J | BJ24: J | BK24: R | BL24: H | BM24: K | BN24: J | BO24: 7 | BP24: J | BQ24: J | BR24: R | BS24: H | BT24: 7 | BU24: J | BV24: J | BW24: J | BX24: J | BY24: R | BZ24: H | CA24: K | CB24: J | CC24: K | CD24: J | CE24: 7 | CF24: R | CG24: H | CH24: K | CI24: J | CJ24: J | CK24: J | CL24: J | CM24: R | CN24: H | CO24: K | CP24: J | CQ24: 7 | CR24: J | CS24: J | CT24: R | CU24: H | CV24: 7 | CW24: J | CX24: J | CY24: J | CZ24: J | DA24: R | DB24: H | DC24: K | DD24: J | DE24: K | DF24: J | DG24: 7 | DH24: R | DI24: H | DJ24: K | DK24: J | DL24: J | DM24: J | DN24: J | DO24: R | DP24: H | DQ24: K | DR24: J | DS24: 7 | DT24: J | DU24: J | DV24: R | DW24: H | DX24: 7 | DY24: J | DZ24: J | EA24: J | EB24: J | EC24: R | ED24: H | EE24: K | EF24: J | EG24: K | EH24: J | EI24: 7 | EJ24: R | EK24: H | EL24: K | EM24: J | EN24: J | EO24: J | EP24: J | EQ24: R | ER24: H | ES24: K | ET24: J | EU24: 7 | EV24: J | EW24: J | EX24: R | EY24: H | EZ24: 7 | FA24: J | FB24: J | FC24: J | FD24: J | FE24: R | FF24: H | FG24: K | FH24: J | FI24: K | FJ24: J | FK24: 7 | FL24: R | FM24: H | FN24: K | FO24: J | FP24: J | FQ24: J | FR24: J | FS24: R | FT24: H | FU24: K | FV24: J | FW24: 7 | FX24: J | FY24: J | FZ24: R | GA24: H | GB24: 7 | GC24: J | GD24: J | GE24: J | GF24: J | GG24: R | GH24: H | GI24: K | GJ24: J | GK24: K | GL24: J | GM24: 7 | GN24: R | GO24: H | GP24: K | GQ24: J | GR24: J | GS24: J | GT24: J | GU24: R | GV24: H | GW24: K | GX24: J | GY24: 7 | GZ24: J | HA24: J | HB24: R | HC24: H | HD24: 7 | HE24: J | HF24: J | HG24: J | HH24: J | HI24: R | HJ24: H | HK24: K | HL24: J | HM24: K | HN24: J | HO24: 7 | HP24: R | HQ24: H | HR24: K | HS24: J | HT24: J | HU24: J | HV24: J | HW24: R | HX24: H | HY24: K | HZ24: J | IA24: 7 | IB24: J | IC24: J | ID24: R | IE24: H | IF24: 7 | IG24: J | IH24: J | II24: J | IJ24: J | IK24: R | IL24: H | IM24: K | IN24: J | IO24: K | IP24: J | IQ24: 7 | IR24: R | IS24: H | IT24: K | IU24: J | IV24: J | IW24: J | IX24: J | IY24: R | IZ24: H | JA24: K | JB24: J | JC24: 7 | JD24: J | JE24: J | JF24: R | JG24: H | JH24: 7 | JI24: J | JJ24: J | JK24: J | JL24: J | JM24: R | JN24: H | JO24: K | JP24: J | JQ24: K | JR24: J | JS24: 7 | JT24: R | JU24: H | JV24: K | JW24: J | JX24: J | JY24: J | JZ24: J | KA24: R | KB24: H | KC24: K | KD24: J | KE24: 7 | KF24: J | KG24: J | KH24: R | KI24: H | KJ24: 7 | KK24: J | KL24: J | KM24: J | KN24: J | KO24: R | KP24: H | KQ24: K | KR24: J | KS24: K | KT24: J | KU24: 7 | KV24: R | KW24: H | KX24: K | KY24: J | KZ24: J | LA24: J | LB24: J | LC24: R | LD24: H | LE24: K | LF24: J | LG24: 7 | LH24: J | LI24: J | LJ24: R | LK24: H | LL24: 7 | LM24: J | LN24: J | LO24: J | LP24: J | LQ24: R | LR24: H | LS24: K | LT24: J | LU24: K | LV24: J | LW24: 7 | LX24: R | LY24: H | LZ24: K | MA24: J | MB24: J | MC24: J | MD24: J | ME24: R | MF24: H | MG24: K | MH24: J | MI24: 7 | MJ24: J | MK24: J | ML24: R | MM24: H | MN24: 7 | MO24: J | MP24: J | MQ24: J | MR24: J | MS24: R | MT24: H | MU24: K | MV24: J | MW24: K | MX24: J | MY24: 7 | MZ24: R | NA24: H | NB24: K | NC24: J | ND24: J | NE24: J | NF24: J | NG24: R | NH24: H | NI24: =comptecouleurfond2($H24:$AL24,$D$11) -> 17 | NJ24: =comptecouleurfond2($AM24:$BN24,$D$11) -> 17 | NK24: =comptecouleurfond2($BO24:$CS24,$D$11) -> 19 | NL24: =comptecouleurfond2($CT24:$DW24,D11) -> 16 | NM24: =comptecouleurfond2($DX24:$FB24,$D$11) -> 17 | NN24: =comptecouleurfond2($FC24:$GF24,$D$11) -> 18 | NO24: =comptecouleurfond2($GG24:$HK24,$D$11) -> 17 | NP24: =comptecouleurfond2($HL24:$IP24,$D$11) -> 19 | NQ24: =comptecouleurfond2($IQ24:$JT24,$D$11) -> 17 | NR24: =comptecouleurfond2($JU24:$KY24,K23) -> 12 | NS24: =comptecouleurfond2($KZ24:$MC24,K23) -> 12 | NT24: =comptecouleurfond2($MD24:$NH24,K23) -> 14 | NU24: =SUM(NI24:NT24) -> 195 | NV24: 2 | NW24: 4 | NX24: 4 | NY24: 5 | NZ24: 4 | OA24: 4 | OB24: 4 | OC24: 5 | OD24: 4 | OE24: 4 | OF24: 4 | OG24: 5 | OH24: 4 | OI24: 4 | OJ24: 4 | OK24: 4 | OL24: 4 | OM24: 4 | ON24: 3 | OO24: 5 | OP24: 3 | OQ24: 4 | OR24: 3 | OS24: 5 | OT24: 4 | OU24: 4 | OV24: 4 | OW24: 4 | OX24: 4 | OY24: 4 | OZ24: 4 | PA24: 5 | PB24: 3 | PC24: 4 | PD24: 4 | PE24: 5 | PF24: 4 | PG24: 4 | PH24: 4 | PI24: 5 | PJ24: 4 | PK24: 4 | PL24: 4 | PM24: 4 | PN24: 4 | PO24: 4 | PP24: 4 | PQ24: 5 | PR24: 4 | PS24: 4 | PT24: 4 | PU24: 4
A26: H | H26: H | I26: K | J26: 21 | K26: 7 | L26: 41 | M26: 41 | N26: R | O26: H | P26: 7 | Q26: 41 | R26: 41 | S26: 41 | T26: 41 | U26: R | V26: H | W26: - | X26: - | Y26: - | Z26: - | AA26: - | AB26: R | AC26: H | AD26: - | AE26: - | AF26: - | AG26: - | AH26: 7 | AI26: R | AJ26: H | AK26: - | AL26: - | AM26: 7 | AN26: - | AO26: - | AP26: R | AQ26: H | AR26: 7 | AS26: - | AT26: - | AU26: - | AV26: - | AW26: R | AX26: H | AY26: - | AZ26: - | BA26: - | BB26: - | BC26: - | BD26: R | BE26: H | BF26: - | BG26: - | BH26: - | BI26: - | BJ26: 7 | BK26: R | BL26: H | BM26: - | BN26: - | BO26: 7 | BP26: - | BQ26: - | BR26: R | BS26: H | BT26: 7 | BU26: - | BV26: - | BW26: - | BX26: - | BY26: R | BZ26: H | CA26: - | CB26: - | CC26: - | CD26: - | CE26: - | CF26: R | CG26: H | CH26: J | CI26: J | CJ26: J | CK26: J | CL26: 7 | CM26: R | CN26: H | CO26: K | CP26: K | CQ26: 7 | CR26: K | CS26: K | CT26: R | CU26: H | CV26: 7 | CW26: J | CX26: J | CY26: J | CZ26: J | DA26: R | DB26: H | DC26: J | DD26: J | DE26: J | DF26: J | DG26: J | DH26: R | DI26: H | DJ26: J | DK26: J | DL26: J | DM26: J | DN26: 7 | DO26: R | DP26: H | DQ26: K | DR26: K | DS26: 7 | DT26: K | DU26: K | DV26: R | DW26: H | DX26: 7 | DY26: J | DZ26: J | EA26: J | EB26: J | EC26: R | ED26: H | EE26: J | EF26: J | EG26: J | EH26: J | EI26: J | EJ26: R | EK26: H | EL26: J | EM26: J | EN26: J | EO26: J | EP26: 7 | EQ26: R | ER26: H | ES26: K | ET26: K | EU26: 7 | EV26: K | EW26: K | EX26: R | EY26: H | EZ26: 7 | FA26: J | FB26: J | FC26: J | FD26: J | FE26: R | FF26: H | FG26: J | FH26: J | FI26: J | FJ26: J | FK26: J | FL26: R | FM26: H | FN26: J | FO26: J | FP26: J | FQ26: J | FR26: 7 | FS26: R | FT26: H | FU26: K | FV26: K | FW26: 7 | FX26: K | FY26: K | FZ26: R | GA26: H | GB26: 7 | GC26: J | GD26: J | GE26: J | GF26: J | GG26: R | GH26: H | GI26: J | GJ26: J | GK26: J | GL26: J | GM26: J | GN26: R | GO26: H | GP26: J | GQ26: J | GR26: J | GS26: J | GT26: 7 | GU26: R | GV26: H | GW26: K | GX26: K | GY26: 7 | GZ26: K | HA26: K | HB26: R | HC26: H | HD26: 7 | HE26: J | HF26: J | HG26: J | HH26: J | HI26: R | HJ26: H | HK26: J | HL26: J | HM26: J | HN26: J | HO26: J | HP26: R | HQ26: H | HR26: J | HS26: J | HT26: J | HU26: J | HV26: 7 | HW26: R | HX26: H | HY26: K | HZ26: K | IA26: 7 | IB26: K | IC26: K | ID26: R | IE26: H | IF26: 7 | IG26: J | IH26: J | II26: J | IJ26: J | IK26: R | IL26: H | IM26: J | IN26: J | IO26: J | IP26: J | IQ26: J | IR26: R | IS26: H | IT26: J | IU26: J | IV26: J | IW26: J | IX26: 7 | IY26: R | IZ26: H | JA26: K | JB26: K | JC26: 7 | JD26: K | JE26: K | JF26: R | JG26: H | JH26: 7 | JI26: J | JJ26: J | JK26: J | JL26: J | JM26: R | JN26: H | JO26: J | JP26: J | JQ26: J | JR26: J | JS26: J | JT26: R | JU26: H | JV26: J | JW26: J | JX26: J | JY26: J | JZ26: 7 | KA26: R | KB26: H | KC26: K | KD26: K | KE26: 7 | KF26: K | KG26: K | KH26: R | KI26: H | KJ26: 7 | KK26: J | KL26: J | KM26: J | KN26: J | KO26: R | KP26: H | KQ26: J | KR26: J | KS26: J | KT26: J | KU26: J | KV26: R | KW26: H | KX26: J | KY26: J | KZ26: J | LA26: J | LB26: 7 | LC26: R | LD26: H | LE26: K | LF26: K | LG26: 7 | LH26: K | LI26: K | LJ26: R | LK26: H | LL26: 7 | LM26: J | LN26: J | LO26: J | LP26: J | LQ26: R | LR26: H | LS26: J | LT26: J | LU26: J | LV26: J | LW26: J | LX26: R | LY26: H | LZ26: J | MA26: J | MB26: J | MC26: J | MD26: 7 | ME26: R | MF26: H | MG26: K | MH26: K | MI26: 7 | MJ26: K | MK26: K | ML26: R | MM26: H | MN26: 7 | MO26: J | MP26: J | MQ26: J | MR26: J | MS26: R | MT26: H | MU26: J | MV26: J | MW26: J | MX26: J | MY26: J | MZ26: R | NA26: H | NB26: J | NC26: J | ND26: J | NE26: J | NF26: 7 | NG26: R | NH26: H | NI26: =comptecouleurfond2($H26:$AL26,$D$11) -> 0 | NJ26: =comptecouleurfond2($AM26:$BN26,$D$11) -> 0 | NK26: =comptecouleurfond2($BO26:$CS26,$D$11) -> 8 | NL26: =comptecouleurfond2($CT26:$DW26,D11) -> 16 | NM26: =comptecouleurfond2($DX26:$FB26,$D$11) -> 17 | NN26: =comptecouleurfond2($FC26:$GF26,$D$11) -> 18 | NO26: =comptecouleurfond2($GG26:$HK26,$D$11) -> 18 | NP26: =comptecouleurfond2($HL26:$IP26,$D$11) -> 19 | NQ26: =comptecouleurfond2($IQ26:$JT26,$D$11) -> 18 | NR26: =comptecouleurfond2($JU26:$KY26,K25) -> 12 | NS26: =comptecouleurfond2($KZ26:$MC26,K25) -> 12 | NT26: =comptecouleurfond2($MD26:$NH26,K25) -> 15 | NU26: =SUM(NI26:NT26) -> 153 | NV26: 0 | NW26: 0 | NX26: 0 | NY26: 0 | NZ26: 0 | OA26: 0 | OB26: 0 | OC26: 0 | OD26: 0 | OE26: 0 | OF26: 0 | OG26: 4 | OH26: 4 | OI26: 4 | OJ26: 5 | OK26: 3 | OL26: 4 | OM26: 4 | ON26: 4 | OO26: 4 | OP26: 3 | OQ26: 4 | OR26: 4 | OS26: 4 | OT26: 4 | OU26: 4 | OV26: 5 | OW26: 4 | OX26: 4 | OY26: 4 | OZ26: 5 | PA26: 4 | PB26: 3 | PC26: 4 | PD26: 5 | PE26: 4 | PF26: 4 | PG26: 4 | PH26: 5 | PI26: 4 | PJ26: 4 | PK26: 4 | PL26: 5 | PM26: 3 | PN26: 4 | PO26: 4 | PP26: 5 | PQ26: 4 | PR26: 4 | PS26: 4 | PT26: 5 | PU26: 3
A28: I | H28: H | I28: J | J28: J | K28: 21 | L28: J | M28: 7 | N28: R | O28: H | P28: K | Q28: K | R28: K | S28: K | T28: J | U28: R | V28: H | W28: J | X28: L5 | Y28: 7 | Z28: 21 | AA28: 21 | AB28: R | AC28: H | AD28: 7 | AE28: 8D | AF28: J | AG28: J | AH28: J | AI28: R | AJ28: H | AK28: J | AL28: J | AM28: J | AN28: J | AO28: 7 | AP28: R | AQ28: H | AR28: K | AS28: K | AT28: K | AU28: K | AV28: J | AW28: R | AX28: H | AY28: J | AZ28: J | BA28: 7 | BB28: J | BC28: J | BD28: R | BE28: H | BF28: 7 | BG28: 8D | BH28: J | BI28: J | BJ28: J | BK28: R | BL28: H | BM28: J | BN28: J | BO28: J | BP28: J | BQ28: 7 | BR28: R | BS28: H | BT28: K | BU28: K | BV28: K | BW28: K | BX28: J | BY28: R | BZ28: H | CA28: J | CB28: J | CC28: 7 | CD28: J | CE28: J | CF28: R | CG28: H | CH28: 7 | CI28: J | CJ28: J | CK28: J | CL28: J | CM28: R | CN28: H | CO28: J | CP28: 8D | CQ28: J | CR28: J | CS28: 7 | CT28: R | CU28: H | CV28: K | CW28: K | CX28: K | CY28: K | CZ28: J | DA28: R | DB28: H | DC28: J | DD28: J | DE28: 7 | DF28: J | DG28: J | DH28: R | DI28: H | DJ28: 7 | DK28: J | DL28: J | DM28: J | DN28: J | DO28: R | DP28: H | DQ28: J | DR28: 8D | DS28: J | DT28: J | DU28: 7 | DV28: R | DW28: H | DX28: K | DY28: K | DZ28: K | EA28: K | EB28: J | EC28: R | ED28: H | EE28: J | EF28: J | EG28: 7 | EH28: J | EI28: J | EJ28: R | EK28: H | EL28: 7 | EM28: J | EN28: J | EO28: J | EP28: J | EQ28: R | ER28: H | ES28: J | ET28: J | EU28: J | EV28: J | EW28: 7 | EX28: R | EY28: H | EZ28: K | FA28: 8D | FB28: K | FC28: K | FD28: J | FE28: R | FF28: H | FG28: J | FH28: J | FI28: 7 | FJ28: J | FK28: J | FL28: R | FM28: H | FN28: 7 | FO28: J | FP28: J | FQ28: J | FR28: J | FS28: R | FT28: H | FU28: J | FV28: J | FW28: J | FX28: J | FY28: 7 | FZ28: R | GA28: H | GB28: K | GC28: 8D | GD28: K | GE28: K | GF28: J | GG28: R | GH28: H | GI28: J | GJ28: J | GK28: 7 | GL28: 8D | GM28: J | GN28: R | GO28: H | GP28: 7 | GQ28: J | GR28: J | GS28: J | GT28: J | GU28: R | GV28: H | GW28: J | GX28: J | GY28: J | GZ28: J | HA28: 7 | HB28: R | HC28: H | HD28: K | HE28: K | HF28: K | HG28: K | HH28: J | HI28: R | HJ28: H | HK28: J | HL28: J | HM28: 7 | HN28: J | HO28: J | HP28: R | HQ28: H | HR28: 7 | HS28: J | HT28: J | HU28: J | HV28: J | HW28: R | HX28: H | HY28: J | HZ28: J | IA28: J | IB28: J | IC28: 7 | ID28: R | IE28: H | IF28: K | IG28: K | IH28: K | II28: K | IJ28: J | IK28: R | IL28: H | IM28: J | IN28: J | IO28: 7 | IP28: - | IQ28: J | IR28: R | IS28: H | IT28: 7 | IU28: J | IV28: J | IW28: J | IX28: J | IY28: R | IZ28: H | JA28: J | JB28: J | JC28: J | JD28: J | JE28: 7 | JF28: R | JG28: H | JH28: K | JI28: K | JJ28: K | JK28: K | JL28: J | JM28: R | JN28: H | JO28: J | JP28: 8D | JQ28: 7 | JR28: J | JS28: J | JT28: R | JU28: H | JV28: 7 | JW28: J | JX28: J | JY28: J | JZ28: J | KA28: R | KB28: H | KC28: J | KD28: J | KE28: J | KF28: J | KG28: 7 | KH28: R | KI28: H | KJ28: K | KK28: K | KL28: K | KM28: K | KN28: J | KO28: R | KP28: H | KQ28: J | KR28: 8D | KS28: 7 | KT28: J | KU28: J | KV28: R | KW28: H | KX28: 7 | KY28: J | KZ28: J | LA28: J | LB28: J | LC28: R | LD28: H | LE28: J | LF28: J | LG28: J | LH28: J | LI28: 7 | LJ28: R | LK28: H | LL28: K | LM28: K | LN28: K | LO28: K | LP28: J | LQ28: R | LR28: H | LS28: J | LT28: J | LU28: 7 | LV28: J | LW28: J | LX28: R | LY28: H | LZ28: 7 | MA28: 8D | MB28: J | MC28: J | MD28: J | ME28: R | MF28: H | MG28: J | MH28: J | MI28: J | MJ28: J | MK28: 7 | ML28: R | MM28: H | MN28: K | MO28: K | MP28: K | MQ28: 8D | MR28: J | MS28: R | MT28: H | MU28: J | MV28: J | MW28: 7 | MX28: J | MY28: J | MZ28: R | NA28: H | NB28: J | NC28: 7 | ND28: J | NE28: J | NF28: J | NG28: R | NH28: H | NI28: =comptecouleurfond2($H28:$AL28,$D$11) -> 13 | NJ28: =comptecouleurfond2($AM28:$BN28,$D$11) -> 16 | NK28: =comptecouleurfond2($BO28:$CS28,$D$11) -> 18 | NL28: =comptecouleurfond2($CT28:$DW28,D11) -> 16 | NM28: =comptecouleurfond2($DX28:$FB28,$D$11) -> 16 | NN28: =comptecouleurfond2($FC28:$GF28,$D$11) -> 17 | NO28: =comptecouleurfond2($GG28:$HK28,$D$11) -> 16 | NP28: =comptecouleurfond2($HL28:$IP28,$D$11) -> 17 | NQ28: =comptecouleurfond2($IQ28:$JT28,$D$11) -> 17 | NR28: =comptecouleurfond2($JU28:$KY28,D11) -> 17 | NS28: =comptecouleurfond2($KZ28:$MC28,D11) -> 17 | NT28: =comptecouleurfond2($MD28:$NH28,D11) -> 16 | NU28: =SUM(NI28:NT28) -> 196 | NV28: 2 | NW28: 5 | NX28: 1 | NY28: 3 | NZ28: 4 | OA28: 5 | OB28: 4 | OC28: 3 | OD28: 4 | OE28: 5 | OF28: 4 | OG28: 4 | OH28: 3 | OI28: 5 | OJ28: 4 | OK28: 4 | OL28: 3 | OM28: 4 | ON28: 3 | OO28: 4 | OP28: 3 | OQ28: 4 | OR28: 3 | OS28: 4 | OT28: 4 | OU28: 4 | OV28: 3 | OW28: 3 | OX28: 4 | OY28: 5 | OZ28: 4 | PA28: 4 | PB28: 3 | PC28: 5 | PD28: 3 | PE28: 4 | PF28: 4 | PG28: 5 | PH28: 3 | PI28: 4 | PJ28: 4 | PK28: 5 | PL28: 3 | PM28: 3 | PN28: 4 | PO28: 5 | PP28: 4 | PQ28: 3 | PR28: 4 | PS28: 4 | PT28: 4 | PU28: 3
A30: J | H30: H | I30: J | J30: 21 | K30: 7 | L30: J | M30: J | N30: R | O30: H | P30: J | Q30: J | R30: 7 | S30: J | T30: J | U30: R | V30: H | W30: J | X30: J | Y30: J | Z30: J | AA30: K | AB30: R | AC30: H | AD30: 41 | AE30: 41 | AF30: 7 | AG30: K | AH30: K | AI30: R | AJ30: H | AK30: J | AL30: J | AM30: 7 | AN30: J | AO30: J | AP30: R | AQ30: H | AR30: J | AS30: J | AT30: 7 | AU30: J | AV30: J | AW30: R | AX30: H | AY30: J | AZ30: J | BA30: J | BB30: J | BC30: 7 | BD30: R | BE30: H | BF30: K | BG30: K | BH30: K | BI30: K | BJ30: K | BK30: R | BL30: H | BM30: J | BN30: J | BO30: 7 | BP30: J | BQ30: J | BR30: R | BS30: H | BT30: 7 | BU30: J | BV30: J | BW30: J | BX30: J | BY30: R | BZ30: H | CA30: J | CB30: J | CC30: J | CD30: J | CE30: 7 | CF30: R | CG30: H | CH30: K | CI30: K | CJ30: K | CK30: K | CL30: K | CM30: R | CN30: H | CO30: J | CP30: J | CQ30: 7 | CR30: J | CS30: J | CT30: R | CU30: H | CV30: 7 | CW30: J | CX30: J | CY30: J | CZ30: J | DA30: R | DB30: H | DC30: J | DD30: J | DE30: J | DF30: J | DG30: 7 | DH30: R | DI30: H | DJ30: K | DK30: K | DL30: K | DM30: K | DN30: K | DO30: R | DP30: H | DQ30: J | DR30: J | DS30: 7 | DT30: J | DU30: J | DV30: R | DW30: H | DX30: 7 | DY30: J | DZ30: J | EA30: J | EB30: J | EC30: R | ED30: H | EE30: J | EF30: J | EG30: J | EH30: J | EI30: 7 | EJ30: R | EK30: H | EL30: K | EM30: K | EN30: K | EO30: K | EP30: K | EQ30: R | ER30: H | ES30: J | ET30: J | EU30: 7 | EV30: J | EW30: J | EX30: R | EY30: H | EZ30: 7 | FA30: J | FB30: J | FC30: J | FD30: J | FE30: R | FF30: H | FG30: J | FH30: J | FI30: J | FJ30: J | FK30: 7 | FL30: R | FM30: H | FN30: K | FO30: K | FP30: K | FQ30: K | FR30: K | FS30: R | FT30: H | FU30: J | FV30: J | FW30: 7 | FX30: J | FY30: J | FZ30: R | GA30: H | GB30: 7 | GC30: J | GD30: J | GE30: J | GF30: J | GG30: R | GH30: H | GI30: J | GJ30: J | GK30: J | GL30: J | GM30: 7 | GN30: R | GO30: H | GP30: K | GQ30: K | GR30: K | GS30: K | GT30: K | GU30: R | GV30: H | GW30: J | GX30: J | GY30: 7 | GZ30: J | HA30: J | HB30: R | HC30: H | HD30: 7 | HE30: J | HF30: J | HG30: J | HH30: J | HI30: R | HJ30: H | HK30: J | HL30: J | HM30: J | HN30: J | HO30: 7 | HP30: R | HQ30: H | HR30: K | HS30: K | HT30: K | HU30: K | HV30: K | HW30: R | HX30: H | HY30: J | HZ30: J | IA30: 7 | IB30: J | IC30: J | ID30: R | IE30: H | IF30: 7 | IG30: J | IH30: J | II30: J | IJ30: J | IK30: R | IL30: H | IM30: J | IN30: J | IO30: J | IP30: J | IQ30: 7 | IR30: R | IS30: H | IT30: K | IU30: K | IV30: K | IW30: K | IX30: K | IY30: R | IZ30: H | JA30: J | JB30: J | JC30: 7 | JD30: J | JE30: J | JF30: R | JG30: H | JH30: 7 | JI30: J | JJ30: J | JK30: J | JL30: J | JM30: R | JN30: H | JO30: J | JP30: J | JQ30: J | JR30: J | JS30: 7 | JT30: R | JU30: H | JV30: K | JW30: K | JX30: K | JY30: K | JZ30: K | KA30: R | KB30: H | KC30: J | KD30: J | KE30: 7 | KF30: J | KG30: J | KH30: R | KI30: H | KJ30: 7 | KK30: J | KL30: J | KM30: J | KN30: J | KO30: R | KP30: H | KQ30: J | KR30: J | KS30: J | KT30: J | KU30: 7 | KV30: R | KW30: H | KX30: K | KY30: K | KZ30: K | LA30: K | LB30: K | LC30: R | LD30: H | LE30: J | LF30: J | LG30: 7 | LH30: J | LI30: J | LJ30: R | LK30: H | LL30: 7 | LM30: J | LN30: J | LO30: J | LP30: J | LQ30: R | LR30: H | LS30: J | LT30: J | LU30: J | LV30: J | LW30: 7 | LX30: R | LY30: H | LZ30: K | MA30: K | MB30: K | MC30: K | MD30: K | ME30: R | MF30: H | MG30: J | MH30: J | MI30: 7 | MJ30: J | MK30: J | ML30: R | MM30: H | MN30: 7 | MO30: J | MP30: J | MQ30: J | MR30: J | MS30: R | MT30: H | MU30: J | MV30: J | MW30: J | MX30: J | MY30: 7 | MZ30: R | NA30: H | NB30: K | NC30: K | ND30: K | NE30: K | NF30: K | NG30: R | NH30: H | NI30: =comptecouleurfond2($H30:$AL30,$D$11) -> 15 | NJ30: =comptecouleurfond2($AM30:$BN30,$D$11) -> 17 | NK30: =comptecouleurfond2($BO30:$CS30,$D$11) -> 19 | NL30: =comptecouleurfond2($CT30:$DW30,D11) -> 16 | NM30: =comptecouleurfond2($DX30:$FB30,$D$11) -> 17 | NN30: =comptecouleurfond2($FC30:$GF30,$D$11) -> 18 | NO30: =comptecouleurfond2($GG30:$HK30,$D$11) -> 17 | NP30: =comptecouleurfond2($HL30:$IP30,$D$11) -> 19 | NQ30: =comptecouleurfond2($IQ30:$JT30,$D$11) -> 17 | NR30: =comptecouleurfond2($JU30:$KY30,K29) -> 12 | NS30: =comptecouleurfond2($KZ30:$MC30,K29) -> 12 | NT30: =comptecouleurfond2($MD30:$NH30,K29) -> 14 | NU30: =SUM(NI30:NT30) -> 193 | NV30: 2 | NW30: 4 | NX30: 5 | NY30: 2 | NZ30: 4 | OA30: 4 | OB30: 4 | OC30: 5 | OD30: 4 | OE30: 4 | OF30: 4 | OG30: 5 | OH30: 4 | OI30: 4 | OJ30: 4 | OK30: 4 | OL30: 4 | OM30: 4 | ON30: 3 | OO30: 5 | OP30: 3 | OQ30: 4 | OR30: 3 | OS30: 5 | OT30: 4 | OU30: 4 | OV30: 4 | OW30: 4 | OX30: 4 | OY30: 4 | OZ30: 4 | PA30: 5 | PB30: 3 | PC30: 4 | PD30: 4 | PE30: 5 | PF30: 4 | PG30: 4 | PH30: 4 | PI30: 5 | PJ30: 4 | PK30: 4 | PL30: 4 | PM30: 4 | PN30: 4 | PO30: 4 | PP30: 4 | PQ30: 5 | PR30: 4 | PS30: 4 | PT30: 4 | PU30: 4
A32: K | H32: H | I32: K | J32: J | K32: J | L32: J | M32: J | N32: R | O32: H | P32: K | Q32: - | R32: 7 | S32: J | T32: J | U32: R | V32: H | W32: K | X32: J | Y32: J | Z32: J | AA32: 7 | AB32: R | AC32: H | AD32: 7 | AE32: K | AF32: J | AG32: J | AH32: J | AI32: R | AJ32: H | AK32: K | AL32: J | AM32: J | AN32: J | AO32: J | AP32: R | AQ32: H | AR32: K | AS32: J | AT32: 7 | AU32: J | AV32: J | AW32: R | AX32: H | AY32: K | AZ32: J | BA32: J | BB32: J | BC32: 7 | BD32: R | BE32: H | BF32: 7 | BG32: K | BH32: J | BI32: J | BJ32: J | BK32: R | BL32: H | BM32: K | BN32: J | BO32: J | BP32: J | BQ32: J | BR32: R | BS32: H | BT32: K | BU32: J | BV32: 7 | BW32: J | BX32: J | BY32: R | BZ32: H | CA32: K | CB32: J | CC32: J | CD32: J | CE32: 7 | CF32: R | CG32: H | CH32: 7 | CI32: K | CJ32: J | CK32: J | CL32: J | CM32: R | CN32: H | CO32: K | CP32: J | CQ32: J | CR32: J | CS32: J | CT32: R | CU32: H | CV32: K | CW32: J | CX32: 7 | CY32: J | CZ32: J | DA32: R | DB32: H | DC32: K | DD32: J | DE32: J | DF32: J | DG32: 7 | DH32: R | DI32: H | DJ32: 7 | DK32: K | DL32: J | DM32: J | DN32: J | DO32: R | DP32: H | DQ32: K | DR32: J | DS32: J | DT32: J | DU32: J | DV32: R | DW32: H | DX32: K | DY32: J | DZ32: 7 | EA32: J | EB32: J | EC32: R | ED32: H | EE32: K | EF32: J | EG32: J | EH32: J | EI32: 7 | EJ32: R | EK32: H | EL32: 7 | EM32: K | EN32: J | EO32: J | EP32: J | EQ32: R | ER32: H | ES32: K | ET32: J | EU32: J | EV32: J | EW32: J | EX32: R | EY32: H | EZ32: K | FA32: J | FB32: 7 | FC32: J | FD32: J | FE32: R | FF32: H | FG32: K | FH32: J | FI32: J | FJ32: J | FK32: 7 | FL32: R | FM32: H | FN32: 7 | FO32: K | FP32: J | FQ32: J | FR32: J | FS32: R | FT32: H | FU32: K | FV32: J | FW32: J | FX32: J | FY32: J | FZ32: R | GA32: H | GB32: K | GC32: J | GD32: 7 | GE32: J | GF32: J | GG32: R | GH32: H | GI32: K | GJ32: J | GK32: J | GL32: J | GM32: 7 | GN32: R | GO32: H | GP32: 7 | GQ32: K | GR32: J | GS32: J | GT32: J | GU32: R | GV32: H | GW32: K | GX32: J | GY32: J | GZ32: J | HA32: J | HB32: R | HC32: H | HD32: K | HE32: J | HF32: 7 | HG32: J | HH32: J | HI32: R | HJ32: H | HK32: K | HL32: J | HM32: J | HN32: J | HO32: 7 | HP32: R | HQ32: H | HR32: 7 | HS32: K | HT32: J | HU32: J | HV32: J | HW32: R | HX32: H | HY32: K | HZ32: J | IA32: J | IB32: J | IC32: J | ID32: R | IE32: H | IF32: K | IG32: J | IH32: 7 | II32: J | IJ32: J | IK32: R | IL32: H | IM32: K | IN32: J | IO32: J | IP32: J | IQ32: 7 | IR32: R | IS32: H | IT32: 7 | IU32: K | IV32: J | IW32: J | IX32: J | IY32: R | IZ32: H | JA32: K | JB32: J | JC32: J | JD32: J | JE32: J | JF32: R | JG32: H | JH32: K | JI32: J | JJ32: 7 | JK32: J | JL32: J | JM32: R | JN32: H | JO32: K | JP32: J | JQ32: J | JR32: J | JS32: 7 | JT32: R | JU32: H | JV32: 7 | JW32: K | JX32: J | JY32: J | JZ32: J | KA32: R | KB32: H | KC32: K | KD32: J | KE32: J | KF32: J | KG32: J | KH32: R | KI32: H | KJ32: K | KK32: J | KL32: 7 | KM32: J | KN32: J | KO32: R | KP32: H | KQ32: K | KR32: J | KS32: J | KT32: J | KU32: 7 | KV32: R | KW32: H | KX32: 7 | KY32: K | KZ32: J | LA32: J | LB32: J | LC32: R | LD32: H | LE32: K | LF32: J | LG32: J | LH32: J | LI32: J | LJ32: R | LK32: H | LL32: K | LM32: J | LN32: 7 | LO32: J | LP32: J | LQ32: R | LR32: H | LS32: K | LT32: J | LU32: J | LV32: J | LW32: 7 | LX32: R | LY32: H | LZ32: 7 | MA32: K | MB32: J | MC32: J | MD32: J | ME32: R | MF32: H | MG32: K | MH32: J | MI32: J | MJ32: J | MK32: J | ML32: R | MM32: H | MN32: K | MO32: J | MP32: 7 | MQ32: J | MR32: J | MS32: R | MT32: H | MU32: K | MV32: J | MW32: J | MX32: J | MY32: 7 | MZ32: R | NA32: H | NB32: 7 | NC32: K | ND32: J | NE32: J | NF32: J | NG32: R | NH32: H | NI32: =comptecouleurfond2($H32:$AL32,$D$11) -> 17 | NJ32: =comptecouleurfond2($AM32:$BN32,$D$11) -> 17 | NK32: =comptecouleurfond2($BO32:$CS32,$D$11) -> 20 | NL32: =comptecouleurfond2($CT32:$DW32,D11) -> 17 | NM32: =comptecouleurfond2($DX32:$FB32,$D$11) -> 16 | NN32: =comptecouleurfond2($FC32:$GF32,$D$11) -> 18 | NO32: =comptecouleurfond2($GG32:$HK32,$D$11) -> 17 | NP32: =comptecouleurfond2($HL32:$IP32,$D$11) -> 19 | NQ32: =comptecouleurfond2($IQ32:$JT32,$D$11) -> 17 | NR32: =comptecouleurfond2($JU32:$KY32,K31) -> 18 | NS32: =comptecouleurfond2($KZ32:$MC32,K31) -> 18 | NT32: =comptecouleurfond2($MD32:$NH32,K31) -> 18 | NU32: =SUM(NI32:NT32) -> 212 | NV32: 4 | NW32: 3 | NX32: 4 | NY32: 4 | NZ32: 5 | OA32: 4 | OB32: 4 | OC32: 4 | OD32: 5 | OE32: 4 | OF32: 4 | OG32: 4 | OH32: 5 | OI32: 4 | OJ32: 4 | OK32: 4 | OL32: 5 | OM32: 3 | ON32: 3 | OO32: 4 | OP32: 4 | OQ32: 4 | OR32: 3 | OS32: 4 | OT32: 5 | OU32: 4 | OV32: 4 | OW32: 3 | OX32: 5 | OY32: 4 | OZ32: 4 | PA32: 4 | PB32: 4 | PC32: 4 | PD32: 4 | PE32: 4 | PF32: 5 | PG32: 4 | PH32: 4 | PI32: 4 | PJ32: 5 | PK32: 4 | PL32: 4 | PM32: 3 | PN32: 5 | PO32: 4 | PP32: 4 | PQ32: 4 | PR32: 5 | PS32: 4 | PT32: 4 | PU32: 4
A34: L | H34: H | I34: 7 | J34: K | K34: 7 | L34: J | M34: - | N34: R | O34: H | P34: K | Q34: J | R34: 7 | S34: J | T34: J | U34: R | V34: H | W34: K | X34: J | Y34: 7 | Z34: J | AA34: J | AB34: R | AC34: H | AD34: K | AE34: J | AF34: 20 | AG34: J | AH34: J | AI34: R | AJ34: H | AK34: 7 | AL34: K | AM34: J | AN34: J | AO34: J | AP34: R | AQ34: H | AR34: K | AS34: J | AT34: 7 | AU34: J | AV34: J | AW34: R | AX34: H | AY34: K | AZ34: J | BA34: J | BB34: J | BC34: 7 | BD34: R | BE34: H | BF34: K | BG34: J | BH34: J | BI34: J | BJ34: J | BK34: R | BL34: H | BM34: 7 | BN34: K | BO34: J | BP34: J | BQ34: J | BR34: R | BS34: H | BT34: K | BU34: J | BV34: 7 | BW34: J | BX34: J | BY34: R | BZ34: H | CA34: K | CB34: J | CC34: J | CD34: J | CE34: 7 | CF34: R | CG34: H | CH34: K | CI34: J | CJ34: J | CK34: J | CL34: J | CM34: R | CN34: H | CO34: 7 | CP34: K | CQ34: J | CR34: J | CS34: J | CT34: R | CU34: H | CV34: K | CW34: J | CX34: 7 | CY34: J | CZ34: J | DA34: R | DB34: H | DC34: K | DD34: J | DE34: J | DF34: J | DG34: 7 | DH34: R | DI34: H | DJ34: K | DK34: J | DL34: J | DM34: J | DN34: J | DO34: R | DP34: H | DQ34: 7 | DR34: K | DS34: J | DT34: J | DU34: J | DV34: R | DW34: H | DX34: K | DY34: J | DZ34: 7 | EA34: J | EB34: J | EC34: R | ED34: H | EE34: K | EF34: J | EG34: J | EH34: J | EI34: 7 | EJ34: R | EK34: H | EL34: K | EM34: J | EN34: J | EO34: J | EP34: J | EQ34: R | ER34: H | ES34: 7 | ET34: K | EU34: J | EV34: J | EW34: J | EX34: R | EY34: H | EZ34: K | FA34: J | FB34: 7 | FC34: J | FD34: J | FE34: R | FF34: H | FG34: K | FH34: J | FI34: J | FJ34: J | FK34: 7 | FL34: R | FM34: H | FN34: K | FO34: J | FP34: J | FQ34: J | FR34: J | FS34: R | FT34: H | FU34: 7 | FV34: K | FW34: J | FX34: J | FY34: J | FZ34: R | GA34: H | GB34: K | GC34: J | GD34: 7 | GE34: J | GF34: J | GG34: R | GH34: H | GI34: K | GJ34: J | GK34: J | GL34: J | GM34: 7 | GN34: R | GO34: H | GP34: K | GQ34: J | GR34: J | GS34: J | GT34: J | GU34: R | GV34: H | GW34: 7 | GX34: K | GY34: J | GZ34: J | HA34: J | HB34: R | HC34: H | HD34: K | HE34: J | HF34: 7 | HG34: J | HH34: J | HI34: R | HJ34: H | HK34: K | HL34: J | HM34: J | HN34: J | HO34: 7 | HP34: R | HQ34: H | HR34: K | HS34: J | HT34: J | HU34: J | HV34: J | HW34: R | HX34: H | HY34: 7 | HZ34: K | IA34: J | IB34: J | IC34: J | ID34: R | IE34: H | IF34: K | IG34: J | IH34: 7 | II34: J | IJ34: J | IK34: R | IL34: H | IM34: K | IN34: J | IO34: J | IP34: J | IQ34: 7 | IR34: R | IS34: H | IT34: K | IU34: J | IV34: J | IW34: J | IX34: J | IY34: R | IZ34: H | JA34: 7 | JB34: K | JC34: J | JD34: J | JE34: J | JF34: R | JG34: H | JH34: K | JI34: J | JJ34: 7 | JK34: J | JL34: J | JM34: R | JN34: H | JO34: K | JP34: J | JQ34: J | JR34: J | JS34: 7 | JT34: R | JU34: H | JV34: K | JW34: J | JX34: J | JY34: J | JZ34: J | KA34: R | KB34: H | KC34: 7 | KD34: K | KE34: J | KF34: J | KG34: J | KH34: R | KI34: H | KJ34: K | KK34: J | KL34: 7 | KM34: J | KN34: J | KO34: R | KP34: H | KQ34: K | KR34: J | KS34: J | KT34: J | KU34: 7 | KV34: R | KW34: H | KX34: K | KY34: J | KZ34: J | LA34: J | LB34: J | LC34: R | LD34: H | LE34: 7 | LF34: K | LG34: J | LH34: J | LI34: J | LJ34: R | LK34: H | LL34: K | LM34: J | LN34: 7 | LO34: J | LP34: J | LQ34: R | LR34: H | LS34: K | LT34: J | LU34: J | LV34: J | LW34: 7 | LX34: R | LY34: H | LZ34: K | MA34: J | MB34: J | MC34: J | MD34: J | ME34: R | MF34: H | MG34: 7 | MH34: K | MI34: J | MJ34: J | MK34: J | ML34: R | MM34: H | MN34: K | MO34: J | MP34: 7 | MQ34: J | MR34: J | MS34: R | MT34: H | MU34: K | MV34: J | MW34: J | MX34: J | MY34: 7 | MZ34: R | NA34: H | NB34: K | NC34: J | ND34: J | NE34: J | NF34: J | NG34: R | NH34: H | NI34: =comptecouleurfond2($H34:$AL34,$D$11) -> 15 | NJ34: =comptecouleurfond2($AM34:$BN34,$D$11) -> 17 | NK34: =comptecouleurfond2($BO34:$CS34,$D$11) -> 20 | NL34: =comptecouleurfond2($CT34:$DW34,D11) -> 16 | NM34: =comptecouleurfond2($DX34:$FB34,$D$11) -> 16 | NN34: =comptecouleurfond2($FC34:$GF34,$D$11) -> 18 | NO34: =comptecouleurfond2($GG34:$HK34,$D$11) -> 17 | NP34: =comptecouleurfond2($HL34:$IP34,$D$11) -> 19 | NQ34: =comptecouleurfond2($IQ34:$JT34,$D$11) -> 17 | NR34: =comptecouleurfond2($JU34:$KY34,D11) -> 19 | NS34: =comptecouleurfond2($KZ34:$MC34,D11) -> 18 | NT34: =comptecouleurfond2($MD34:$NH34,D11) -> 17 | NU34: =SUM(NI34:NT34) -> 209 | NV34: 2 | NW34: 4 | NX34: 4 | NY34: 4 | NZ34: 4 | OA34: 4 | OB34: 4 | OC34: 5 | OD34: 4 | OE34: 4 | OF34: 4 | OG34: 5 | OH34: 4 | OI34: 4 | OJ34: 4 | OK34: 4 | OL34: 4 | OM34: 3 | ON34: 3 | OO34: 5 | OP34: 3 | OQ34: 4 | OR34: 3 | OS34: 5 | OT34: 4 | OU34: 4 | OV34: 4 | OW34: 4 | OX34: 4 | OY34: 4 | OZ34: 4 | PA34: 5 | PB34: 3 | PC34: 4 | PD34: 4 | PE34: 5 | PF34: 4 | PG34: 4 | PH34: 4 | PI34: 5 | PJ34: 4 | PK34: 4 | PL34: 4 | PM34: 4 | PN34: 4 | PO34: 4 | PP34: 4 | PQ34: 5 | PR34: 4 | PS34: 4 | PT34: 4 | PU34: 4
A36: M | H36: H | I36: K | J36: 7 | K36: + | L36: K | M36: K | N36: R | O36: H | P36: K | Q36: K | R36: 7 | S36: K | T36: - | U36: R | V36: H | W36: K | X36: K | Y36: 7 | Z36: + | AA36: + | AB36: R | AC36: H | AD36: J | AE36: J | AF36: J | AG36: J | AH36: + | AI36: R | AJ36: H | AK36: 7 | AL36: K | AM36: K | AN36: K | AO36: K | AP36: R | AQ36: H | AR36: K | AS36: K | AT36: 7 | AU36: K | AV36: K | AW36: R | AX36: H | AY36: K | AZ36: K | BA36: K | BB36: K | BC36: 7 | BD36: R | BE36: H | BF36: J | BG36: J | BH36: J | BI36: J | BJ36: J | BK36: R | BL36: H | BM36: 7 | BN36: K | BO36: K | BP36: K | BQ36: K | BR36: R | BS36: H | BT36: K | BU36: K | BV36: 7 | BW36: K | BX36: K | BY36: R | BZ36: H | CA36: K | CB36: K | CC36: K | CD36: K | CE36: 7 | CF36: R | CG36: H | CH36: J | CI36: J | CJ36: J | CK36: J | CL36: J | CM36: R | CN36: H | CO36: 7 | CP36: K | CQ36: K | CR36: K | CS36: K | CT36: R | CU36: H | CV36: K | CW36: K | CX36: 7 | CY36: K | CZ36: K | DA36: R | DB36: H | DC36: K | DD36: K | DE36: K | DF36: K | DG36: 7 | DH36: R | DI36: H | DJ36: J | DK36: J | DL36: J | DM36: J | DN36: J | DO36: R | DP36: H | DQ36: 7 | DR36: K | DS36: K | DT36: K | DU36: K | DV36: R | DW36: H | DX36: K | DY36: K | DZ36: 7 | EA36: K | EB36: K | EC36: R | ED36: H | EE36: K | EF36: K | EG36: K | EH36: K | EI36: 7 | EJ36: R | EK36: H | EL36: J | EM36: J | EN36: J | EO36: J | EP36: J | EQ36: R | ER36: H | ES36: 7 | ET36: K | EU36: K | EV36: K | EW36: K | EX36: R | EY36: H | EZ36: K | FA36: K | FB36: 7 | FC36: K | FD36: K | FE36: R | FF36: H | FG36: K | FH36: K | FI36: K | FJ36: K | FK36: 7 | FL36: R | FM36: H | FN36: J | FO36: J | FP36: J | FQ36: J | FR36: J | FS36: R | FT36: H | FU36: 7 | FV36: K | FW36: K | FX36: K | FY36: K | FZ36: R | GA36: H | GB36: K | GC36: K | GD36: 7 | GE36: K | GF36: K | GG36: R | GH36: H | GI36: K | GJ36: K | GK36: K | GL36: K | GM36: 7 | GN36: R | GO36: H | GP36: J | GQ36: J | GR36: J | GS36: J | GT36: J | GU36: R | GV36: H | GW36: 7 | GX36: K | GY36: K | GZ36: K | HA36: K | HB36: R | HC36: H | HD36: K | HE36: K | HF36: 7 | HG36: K | HH36: K | HI36: R | HJ36: H | HK36: K | HL36: K | HM36: K | HN36: K | HO36: 7 | HP36: R | HQ36: H | HR36: J | HS36: J | HT36: J | HU36: J | HV36: J | HW36: R | HX36: H | HY36: 7 | HZ36: K | IA36: K | IB36: K | IC36: K | ID36: R | IE36: H | IF36: K | IG36: K | IH36: 7 | II36: K | IJ36: K | IK36: R | IL36: H | IM36: K | IN36: K | IO36: K | IP36: K | IQ36: 7 | IR36: R | IS36: H | IT36: J | IU36: J | IV36: J | IW36: J | IX36: J | IY36: R | IZ36: H | JA36: 7 | JB36: K | JC36: K | JD36: K | JE36: K | JF36: R | JG36: H | JH36: K | JI36: K | JJ36: 7 | JK36: K | JL36: K | JM36: R | JN36: H | JO36: K | JP36: K | JQ36: K | JR36: K | JS36: 7 | JT36: R | JU36: H | JV36: J | JW36: J | JX36: J | JY36: J | JZ36: J | KA36: R | KB36: H | KC36: 7 | KD36: K | KE36: K | KF36: K | KG36: K | KH36: R | KI36: H | KJ36: K | KK36: K | KL36: 7 | KM36: K | KN36: K | KO36: R | KP36: H | KQ36: K | KR36: K | KS36: K | KT36: K | KU36: 7 | KV36: R | KW36: H | KX36: J | KY36: J | KZ36: J | LA36: J | LB36: J | LC36: R | LD36: H | LE36: 7 | LF36: K | LG36: K | LH36: K | LI36: K | LJ36: R | LK36: H | LL36: K | LM36: K | LN36: 7 | LO36: K | LP36: K | LQ36: R | LR36: H | LS36: K | LT36: K | LU36: K | LV36: K | LW36: 7 | LX36: R | LY36: H | LZ36: J | MA36: J | MB36: J | MC36: J | MD36: J | ME36: R | MF36: H | MG36: 7 | MH36: K | MI36: K | MJ36: K | MK36: K | ML36: R | MM36: H | MN36: K | MO36: K | MP36: 7 | MQ36: K | MR36: K | MS36: R | MT36: H | MU36: K | MV36: K | MW36: K | MX36: K | MY36: 7 | MZ36: R | NA36: H | NB36: J | NC36: J | ND36: J | NE36: J | NF36: J | NG36: R | NH36: H | NI36: =comptecouleurfond2($H36:$AL36,$D$11) -> 12 | NJ36: =comptecouleurfond2($AM36:$BN36,$D$11) -> 17 | NK36: =comptecouleurfond2($BO36:$CS36,$D$11) -> 20 | NL36: =comptecouleurfond2($CT36:$DW36,D11) -> 16 | NM36: =comptecouleurfond2($DX36:$FB36,$D$11) -> 16 | NN36: =comptecouleurfond2($FC36:$GF36,$D$11) -> 18 | NO36: =comptecouleurfond2($GG36:$HK36,$D$11) -> 17 | NP36: =comptecouleurfond2($HL36:$IP36,$D$11) -> 19 | NQ36: =comptecouleurfond2($IQ36:$JT36,$D$11) -> 17 | NR36: =comptecouleurfond2($JU36:$KY36,D11) -> 19 | NS36: =comptecouleurfond2($KZ36:$MC36,D11) -> 18 | NT36: =comptecouleurfond2($MD36:$NH36,D11) -> 17 | NU36: =SUM(NI36:NT36) -> 206 | NV36: 2 | NW36: 3 | NX36: 2 | NY36: 4 | NZ36: 4 | OA36: 4 | OB36: 4 | OC36: 5 | OD36: 4 | OE36: 4 | OF36: 4 | OG36: 5 | OH36: 4 | OI36: 4 | OJ36: 4 | OK36: 4 | OL36: 4 | OM36: 3 | ON36: 3 | OO36: 5 | OP36: 3 | OQ36: 4 | OR36: 3 | OS36: 5 | OT36: 4 | OU36: 4 | OV36: 4 | OW36: 4 | OX36: 4 | OY36: 4 | OZ36: 4 | PA36: 5 | PB36: 3 | PC36: 4 | PD36: 4 | PE36: 5 | PF36: 4 | PG36: 4 | PH36: 4 | PI36: 5 | PJ36: 4 | PK36: 4 | PL36: 4 | PM36: 4 | PN36: 4 | PO36: 4 | PP36: 4 | PQ36: 5 | PR36: 4 | PS36: 4 | PT36: 4 | PU36: 4
A38: N | H38: H | I38: J | J38: J | K38: J | L38: J | M38: 7 | N38: R | O38: H | P38: K | Q38: FP | R38: K | S38: K | T38: K | U38: R | V38: H | W38: 7 | X38: J | Y38: J | Z38: J | AA38: J | AB38: R | AC38: H | AD38: J | AE38: J | AF38: 7 | AG38: J | AH38: J | AI38: R | AJ38: H | AK38: J | AL38: J | AM38: J | AN38: J | AO38: 7 | AP38: R | AQ38: H | AR38: K | AS38: K | AT38: K | AU38: K | AV38: K | AW38: R | AX38: H | AY38: 7 | AZ38: J | BA38: J | BB38: J | BC38: J | BD38: R | BE38: H | BF38: J | BG38: J | BH38: 7 | BI38: J | BJ38: J | BK38: R | BL38: H | BM38: J | BN38: J | BO38: J | BP38: J | BQ38: 7 | BR38: R | BS38: H | BT38: K | BU38: K | BV38: K | BW38: K | BX38: K | BY38: R | BZ38: H | CA38: 7 | CB38: J | CC38: J | CD38: J | CE38: J | CF38: R | CG38: H | CH38: J | CI38: J | CJ38: 7 | CK38: J | CL38: J | CM38: R | CN38: H | CO38: J | CP38: J | CQ38: J | CR38: J | CS38: 7 | CT38: R | CU38: H | CV38: K | CW38: K | CX38: K | CY38: K | CZ38: K | DA38: R | DB38: H | DC38: 7 | DD38: J | DE38: J | DF38: J | DG38: J | DH38: R | DI38: H | DJ38: J | DK38: J | DL38: 7 | DM38: J | DN38: J | DO38: R | DP38: H | DQ38: J | DR38: J | DS38: J | DT38: J | DU38: 7 | DV38: R | DW38: H | DX38: K | DY38: K | DZ38: K | EA38: K | EB38: K | EC38: R | ED38: H | EE38: 7 | EF38: J | EG38: J | EH38: J | EI38: J | EJ38: R | EK38: H | EL38: J | EM38: J | EN38: 7 | EO38: J | EP38: J | EQ38: R | ER38: H | ES38: J | ET38: J | EU38: J | EV38: J | EW38: 7 | EX38: R | EY38: H | EZ38: K | FA38: K | FB38: K | FC38: K | FD38: K | FE38: R | FF38: H | FG38: 7 | FH38: J | FI38: J | FJ38: J | FK38: J | FL38: R | FM38: H | FN38: J | FO38: J | FP38: 7 | FQ38: J | FR38: J | FS38: R | FT38: H | FU38: J | FV38: J | FW38: J | FX38: J | FY38: 7 | FZ38: R | GA38: H | GB38: K | GC38: K | GD38: K | GE38: K | GF38: K | GG38: R | GH38: H | GI38: 7 | GJ38: J | GK38: J | GL38: J | GM38: J | GN38: R | GO38: H | GP38: J | GQ38: J | GR38: 7 | GS38: J | GT38: J | GU38: R | GV38: H | GW38: J | GX38: J | GY38: J | GZ38: J | HA38: 7 | HB38: R | HC38: H | HD38: K | HE38: K | HF38: K | HG38: K | HH38: K | HI38: R | HJ38: H | HK38: 7 | HL38: J | HM38: J | HN38: J | HO38: J | HP38: R | HQ38: H | HR38: J | HS38: J | HT38: 7 | HU38: J | HV38: J | HW38: R | HX38: H | HY38: J | HZ38: J | IA38: J | IB38: J | IC38: 7 | ID38: R | IE38: H | IF38: K | IG38: K | IH38: K | II38: K | IJ38: K | IK38: R | IL38: H | IM38: 7 | IN38: J | IO38: J | IP38: J | IQ38: J | IR38: R | IS38: H | IT38: J | IU38: J | IV38: 7 | IW38: J | IX38: J | IY38: R | IZ38: H | JA38: J | JB38: J | JC38: J | JD38: J | JE38: 7 | JF38: R | JG38: H | JH38: K | JI38: K | JJ38: K | JK38: K | JL38: K | JM38: R | JN38: H | JO38: 7 | JP38: J | JQ38: J | JR38: J | JS38: J | JT38: R | JU38: H | JV38: J | JW38: J | JX38: 7 | JY38: J | JZ38: J | KA38: R | KB38: H | KC38: J | KD38: J | KE38: J | KF38: J | KG38: 7 | KH38: R | KI38: H | KJ38: K | KK38: K | KL38: K | KM38: K | KN38: K | KO38: R | KP38: H | KQ38: 7 | KR38: J | KS38: J | KT38: J | KU38: J | KV38: R | KW38: H | KX38: J | KY38: J | KZ38: 7 | LA38: J | LB38: J | LC38: R | LD38: H | LE38: J | LF38: J | LG38: J | LH38: J | LI38: 7 | LJ38: R | LK38: H | LL38: K | LM38: K | LN38: K | LO38: K | LP38: K | LQ38: R | LR38: H | LS38: 7 | LT38: J | LU38: J | LV38: J | LW38: J | LX38: R | LY38: H | LZ38: J | MA38: J | MB38: 7 | MC38: J | MD38: J | ME38: R | MF38: H | MG38: J | MH38: J | MI38: J | MJ38: J | MK38: 7 | ML38: R | MM38: H | MN38: K | MO38: K | MP38: K | MQ38: K | MR38: K | MS38: R | MT38: H | MU38: 7 | MV38: J | MW38: J | MX38: J | MY38: J | MZ38: R | NA38: H | NB38: J | NC38: J | ND38: 7 | NE38: J | NF38: J | NG38: R | NH38: H | NI38: =comptecouleurfond2($H38:$AL38,$D$11) -> 17 | NJ38: =comptecouleurfond2($AM38:$BN38,$D$11) -> 17 | NK38: =comptecouleurfond2($BO38:$CS38,$D$11) -> 19 | NL38: =comptecouleurfond2($CT38:$DW38,D11) -> 16 | NM38: =comptecouleurfond2($DX38:$FB38,$D$11) -> 18 | NN38: =comptecouleurfond2($FC38:$GF38,$D$11) -> 19 | NO38: =comptecouleurfond2($GG38:$HK38,$D$11) -> 16 | NP38: =comptecouleurfond2($HL38:$IP38,$D$11) -> 19 | NQ38: =comptecouleurfond2($IQ38:$JT38,$D$11) -> 18 | NR38: =comptecouleurfond2($JU38:$KY38,K37) -> 19 | NS38: =comptecouleurfond2($KZ38:$MC38,K37) -> 18 | NT38: =comptecouleurfond2($MD38:$NH38,K37) -> 17 | NU38: =SUM(NI38:NT38) -> 213 | NV38: 3 | NW38: 4 | NX38: 4 | NY38: 4 | NZ38: 4 | OA38: 5 | OB38: 4 | OC38: 4 | OD38: 4 | OE38: 5 | OF38: 4 | OG38: 4 | OH38: 4 | OI38: 5 | OJ38: 4 | OK38: 3 | OL38: 4 | OM38: 4 | ON38: 4 | OO38: 4 | OP38: 3 | OQ38: 5 | OR38: 4 | OS38: 4 | OT38: 4 | OU38: 5 | OV38: 4 | OW38: 3 | OX38: 4 | OY38: 5 | OZ38: 4 | PA38: 4 | PB38: 3 | PC38: 5 | PD38: 4 | PE38: 4 | PF38: 4 | PG38: 5 | PH38: 4 | PI38: 4 | PJ38: 4 | PK38: 5 | PL38: 4 | PM38: 4 | PN38: 4 | PO38: 5 | PP38: 4 | PQ38: 4 | PR38: 4 | PS38: 5 | PT38: 4 | PU38: 3
A40: O | H40: H | I40: J | J40: J | K40: 7 | L40: J | M40: J | N40: R | O40: H | P40: J | Q40: J | R40: J | S40: J | T40: 7 | U40: R | V40: H | W40: J | X40: J | Y40: J | Z40: J | AA40: J | AB40: R | AC40: H | AD40: 7 | AE40: K | AF40: K | AG40: K | AH40: K | AI40: R | AJ40: H | AK40: J | AL40: J | AM40: J | AN40: J | AO40: J | AP40: R | AQ40: H | AR40: 7 | AS40: 7 | AT40: 7 | AU40: FP | AV40: FP | AW40: R | AX40: H | AY40: J | AZ40: J | BA40: J | BB40: J | BC40: J | BD40: R | BE40: H | BF40: K | BG40: K | BH40: K | BI40: K | BJ40: K | BK40: R | BL40: H | BM40: J | BN40: J | BO40: 7 | BP40: J | BQ40: J | BR40: R | BS40: H | BT40: J | BU40: J | BV40: J | BW40: J | BX40: 7 | BY40: R | BZ40: H | CA40: J | CB40: J | CC40: J | CD40: J | CE40: J | CF40: R | CG40: H | CH40: 7 | CI40: K | CJ40: K | CK40: K | CL40: K | CM40: R | CN40: H | CO40: J | CP40: J | CQ40: 7 | CR40: J | CS40: J | CT40: R | CU40: H | CV40: J | CW40: J | CX40: J | CY40: J | CZ40: 7 | DA40: R | DB40: H | DC40: J | DD40: J | DE40: J | DF40: J | DG40: J | DH40: R | DI40: H | DJ40: 7 | DK40: 7 | DL40: K | DM40: K | DN40: K | DO40: R | DP40: H | DQ40: J | DR40: J | DS40: J | DT40: J | DU40: 7 | DV40: R | DW40: H | DX40: J | DY40: J | DZ40: J | EA40: J | EB40: 7 | EC40: R | ED40: H | EE40: J | EF40: J | EG40: J | EH40: J | EI40: J | EJ40: R | EK40: H | EL40: 7 | EM40: K | EN40: K | EO40: K | EP40: K | EQ40: R | ER40: H | ES40: J | ET40: J | EU40: J | EV40: J | EW40: 7 | EX40: R | EY40: H | EZ40: J | FA40: J | FB40: J | FC40: J | FD40: 7 | FE40: R | FF40: H | FG40: J | FH40: J | FI40: J | FJ40: J | FK40: J | FL40: R | FM40: H | FN40: 7 | FO40: K | FP40: K | FQ40: K | FR40: K | FS40: R | FT40: H | FU40: J | FV40: J | FW40: 7 | FX40: J | FY40: J | FZ40: R | GA40: H | GB40: J | GC40: J | GD40: J | GE40: J | GF40: 7 | GG40: R | GH40: H | GI40: J | GJ40: J | GK40: J | GL40: J | GM40: J | GN40: R | GO40: H | GP40: K | GQ40: K | GR40: K | GS40: 7 | GT40: K | GU40: R | GV40: H | GW40: J | GX40: J | GY40: 7 | GZ40: J | HA40: J | HB40: R | HC40: H | HD40: J | HE40: J | HF40: J | HG40: J | HH40: 7 | HI40: R | HJ40: H | HK40: J | HL40: J | HM40: J | HN40: J | HO40: J | HP40: R | HQ40: H | HR40: 7 | HS40: K | HT40: K | HU40: K | HV40: K | HW40: R | HX40: H | HY40: 7 | HZ40: J | IA40: J | IB40: J | IC40: J | ID40: R | IE40: H | IF40: J | IG40: J | IH40: J | II40: J | IJ40: 7 | IK40: R | IL40: H | IM40: J | IN40: J | IO40: J | IP40: J | IQ40: J | IR40: R | IS40: H | IT40: 7 | IU40: K | IV40: K | IW40: K | IX40: K | IY40: R | IZ40: H | JA40: J | JB40: J | JC40: 7 | JD40: J | JE40: J | JF40: R | JG40: H | JH40: J | JI40: J | JJ40: J | JK40: J | JL40: 7 | JM40: R | JN40: H | JO40: J | JP40: J | JQ40: J | JR40: J | JS40: J | JT40: R | JU40: H | JV40: 7 | JW40: K | JX40: K | JY40: K | JZ40: K | KA40: R | KB40: H | KC40: J | KD40: J | KE40: 7 | KF40: J | KG40: J | KH40: R | KI40: H | KJ40: J | KK40: J | KL40: J | KM40: J | KN40: 7 | KO40: R | KP40: H | KQ40: J | KR40: J | KS40: J | KT40: J | KU40: J | KV40: R | KW40: H | KX40: 7 | KY40: K | KZ40: K | LA40: K | LB40: K | LC40: R | LD40: H | LE40: J | LF40: J | LG40: J | LH40: J | LI40: J | LJ40: R | LK40: H | LL40: 7 | LM40: 7 | LN40: J | LO40: J | LP40: J | LQ40: R | LR40: H | LS40: J | LT40: J | LU40: J | LV40: J | LW40: J | LX40: R | LY40: H | LZ40: 7 | MA40: K | MB40: K | MC40: K | MD40: K | ME40: R | MF40: H | MG40: J | MH40: J | MI40: 7 | MJ40: J | MK40: J | ML40: R | MM40: H | MN40: J | MO40: J | MP40: J | MQ40: J | MR40: 7 | MS40: R | MT40: H | MU40: J | MV40: J | MW40: J | MX40: J | MY40: J | MZ40: R | NA40: H | NB40: K | NC40: K | ND40: 7 | NE40: K | NF40: K | NG40: R | NH40: H | NI40: =comptecouleurfond2($H40:$AL40,$D$11) -> 18 | NJ40: =comptecouleurfond2($AM40:$BN40,$D$11) -> 15 | NK40: =comptecouleurfond2($BO40:$CS40,$D$11) -> 19 | NL40: =comptecouleurfond2($CT40:$DW40,D11) -> 16 | NM40: =comptecouleurfond2($DX40:$FB40,$D$11) -> 17 | NN40: =comptecouleurfond2($FC40:$GF40,$D$11) -> 17 | NO40: =comptecouleurfond2($GG40:$HK40,$D$11) -> 17 | NP40: =comptecouleurfond2($HL40:$IP40,$D$11) -> 19 | NQ40: =comptecouleurfond2($IQ40:$JT40,$D$11) -> 18 | NR40: =comptecouleurfond2($JU40:$KY40,K39) -> 13 | NS40: =comptecouleurfond2($KZ40:$MC40,K39) -> 12 | NT40: =comptecouleurfond2($MD40:$NH40,K39) -> 14 | NU40: =SUM(NI40:NT40) -> 195 | NV40: 3 | NW40: 4 | NX40: 5 | NY40: 4 | NZ40: 5 | OA40: 0 | OB40: 5 | OC40: 5 | OD40: 4 | OE40: 4 | OF40: 5 | OG40: 4 | OH40: 4 | OI40: 4 | OJ40: 5 | OK40: 3 | OL40: 4 | OM40: 3 | ON40: 4 | OO40: 4 | OP40: 3 | OQ40: 4 | OR40: 4 | OS40: 4 | OT40: 4 | OU40: 4 | OV40: 5 | OW40: 3 | OX40: 4 | OY40: 4 | OZ40: 5 | PA40: 4 | PB40: 3 | PC40: 4 | PD40: 5 | PE40: 4 | PF40: 4 | PG40: 4 | PH40: 5 | PI40: 4 | PJ40: 4 | PK40: 4 | PL40: 5 | PM40: 3 | PN40: 5 | PO40: 3 | PP40: 5 | PQ40: 4 | PR40: 4 | PS40: 4 | PT40: 5 | PU40: 3
A42: P | H42: H | I42: J | J42: J | K42: J | L42: J | M42: 7 | N42: R | O42: H | P42: K | Q42: K | R42: J | S42: K | T42: K | U42: R | V42: H | W42: J | X42: J | Y42: J | Z42: J | AA42: 7 | AB42: R | AC42: H | AD42: J | AE42: J | AF42: 7 | AG42: J | AH42: J | AI42: R | AJ42: H | AK42: 7 | AL42: J | AM42: J | AN42: J | AO42: J | AP42: R | AQ42: H | AR42: K | AS42: K | AT42: J | AU42: K | AV42: K | AW42: R | AX42: H | AY42: J | AZ42: J | BA42: J | BB42: J | BC42: 7 | BD42: R | BE42: H | BF42: J | BG42: J | BH42: 7 | BI42: J | BJ42: J | BK42: R | BL42: H | BM42: 7 | BN42: J | BO42: J | BP42: J | BQ42: J | BR42: R | BS42: H | BT42: K | BU42: K | BV42: J | BW42: K | BX42: K | BY42: R | BZ42: H | CA42: J | CB42: J | CC42: J | CD42: J | CE42: 7 | CF42: R | CG42: H | CH42: J | CI42: J | CJ42: 7 | CK42: J | CL42: J | CM42: R | CN42: H | CO42: 7 | CP42: J | CQ42: J | CR42: J | CS42: J | CT42: R | CU42: H | CV42: K | CW42: K | CX42: J | CY42: K | CZ42: K | DA42: R | DB42: H | DC42: J | DD42: J | DE42: J | DF42: J | DG42: 7 | DH42: R | DI42: H | DJ42: J | DK42: J | DL42: 7 | DM42: J | DN42: J | DO42: R | DP42: H | DQ42: 7 | DR42: J | DS42: J | DT42: J | DU42: J | DV42: R | DW42: H | DX42: K | DY42: K | DZ42: J | EA42: K | EB42: K | EC42: R | ED42: H | EE42: J | EF42: J | EG42: J | EH42: J | EI42: 7 | EJ42: R | EK42: H | EL42: J | EM42: J | EN42: 7 | EO42: J | EP42: J | EQ42: R | ER42: H | ES42: 7 | ET42: J | EU42: J | EV42: J | EW42: J | EX42: R | EY42: H | EZ42: K | FA42: K | FB42: J | FC42: K | FD42: K | FE42: R | FF42: H | FG42: J | FH42: J | FI42: J | FJ42: J | FK42: 7 | FL42: R | FM42: H | FN42: J | FO42: J | FP42: 7 | FQ42: J | FR42: J | FS42: R | FT42: H | FU42: 7 | FV42: J | FW42: J | FX42: J | FY42: J | FZ42: R | GA42: H | GB42: K | GC42: K | GD42: J | GE42: K | GF42: K | GG42: R | GH42: H | GI42: J | GJ42: J | GK42: J | GL42: J | GM42: 7 | GN42: R | GO42: H | GP42: J | GQ42: J | GR42: 7 | GS42: J | GT42: J | GU42: R | GV42: H | GW42: 7 | GX42: J | GY42: J | GZ42: J | HA42: J | HB42: R | HC42: H | HD42: K | HE42: K | HF42: J | HG42: K | HH42: K | HI42: R | HJ42: H | HK42: J | HL42: J | HM42: J | HN42: J | HO42: 7 | HP42: R | HQ42: H | HR42: J | HS42: J | HT42: 7 | HU42: J | HV42: J | HW42: R | HX42: H | HY42: 7 | HZ42: J | IA42: J | IB42: J | IC42: J | ID42: R | IE42: H | IF42: K | IG42: K | IH42: J | II42: K | IJ42: K | IK42: R | IL42: H | IM42: J | IN42: J | IO42: J | IP42: J | IQ42: 7 | IR42: R | IS42: H | IT42: J | IU42: J | IV42: 7 | IW42: J | IX42: J | IY42: R | IZ42: H | JA42: 7 | JB42: J | JC42: J | JD42: J | JE42: J | JF42: R | JG42: H | JH42: K | JI42: K | JJ42: J | JK42: K | JL42: K | JM42: R | JN42: H | JO42: J | JP42: J | JQ42: J | JR42: J | JS42: 7 | JT42: R | JU42: H | JV42: J | JW42: J | JX42: 7 | JY42: J | JZ42: J | KA42: R | KB42: H | KC42: 7 | KD42: J | KE42: J | KF42: J | KG42: J | KH42: R | KI42: H | KJ42: K | KK42: K | KL42: J | KM42: K | KN42: K | KO42: R | KP42: H | KQ42: J | KR42: J | KS42: J | KT42: J | KU42: 7 | KV42: R | KW42: H | KX42: J | KY42: J | KZ42: 7 | LA42: J | LB42: J | LC42: R | LD42: H | LE42: 7 | LF42: J | LG42: J | LH42: J | LI42: J | LJ42: R | LK42: H | LL42: K | LM42: K | LN42: J | LO42: K | LP42: K | LQ42: R | LR42: H | LS42: J | LT42: J | LU42: J | LV42: J | LW42: 7 | LX42: R | LY42: H | LZ42: J | MA42: J | MB42: 7 | MC42: J | MD42: J | ME42: R | MF42: H | MG42: 7 | MH42: J | MI42: J | MJ42: J | MK42: J | ML42: R | MM42: H | MN42: K | MO42: K | MP42: J | MQ42: K | MR42: K | MS42: R | MT42: H | MU42: J | MV42: J | MW42: J | MX42: J | MY42: 7 | MZ42: R | NA42: H | NB42: J | NC42: J | ND42: 7 | NE42: J | NF42: J | NG42: R | NH42: H | NI42: =comptecouleurfond2($H42:$AL42,$D$11) -> 17 | NJ42: =comptecouleurfond2($AM42:$BN42,$D$11) -> 17 | NK42: =comptecouleurfond2($BO42:$CS42,$D$11) -> 20 | NL42: =comptecouleurfond2($CT42:$DW42,D11) -> 16 | NM42: =comptecouleurfond2($DX42:$FB42,$D$11) -> 17 | NN42: =comptecouleurfond2($FC42:$GF42,$D$11) -> 18 | NO42: =comptecouleurfond2($GG42:$HK42,$D$11) -> 17 | NP42: =comptecouleurfond2($HL42:$IP42,$D$11) -> 19 | NQ42: =comptecouleurfond2($IQ42:$JT42,$D$11) -> 17 | NR42: =comptecouleurfond2($JU42:$KY42,K41) -> 19 | NS42: =comptecouleurfond2($KZ42:$MC42,D11) -> 18 | NT42: =comptecouleurfond2($MD42:$NH42,K41) -> 17 | NU42: 212 | NV42: 3 | NW42: 5 | NX42: 4 | NY42: 4 | NZ42: 4 | OA42: 5 | OB42: 4 | OC42: 4 | OD42: 4 | OE42: 5 | OF42: 4 | OG42: 4 | OH42: 4 | OI42: 5 | OJ42: 4 | OK42: 3 | OL42: 4 | OM42: 4 | ON42: 3 | OO42: 4 | OP42: 3 | OQ42: 5 | OR42: 3 | OS42: 4 | OT42: 4 | OU42: 5 | OV42: 4 | OW42: 3 | OX42: 4 | OY42: 5 | OZ42: 4 | PA42: 4 | PB42: 3 | PC42: 5 | PD42: 4 | PE42: 4 | PF42: 4 | PG42: 5 | PH42: 4 | PI42: 4 | PJ42: 4 | PK42: 5 | PL42: 4 | PM42: 4 | PN42: 4 | PO42: 5 | PP42: 4 | PQ42: 4 | PR42: 4 | PS42: 5 | PT42: 4 | PU42: 3
A44: Q | H44: H | I44: J | J44: J | K44: J | L44: J | M44: 7 | N44: R | O44: H | P44: J | Q44: J | R44: J | S44: J | T44: 7 | U44: R | V44: H | W44: J | X44: J | Y44: J | Z44: J | AA44: J | AB44: R | AC44: H | AD44: 7 | AE44: K | AF44: K | AG44: K | AH44: K | AI44: R | AJ44: H | AK44: J | AL44: J | AM44: 7 | AN44: J | AO44: J | AP44: R | AQ44: H | AR44: 21 | AS44: 21 | AT44: 21 | AU44: 10 | AV44: 7 | AW44: R | AX44: H | AY44: J | AZ44: J | BA44: J | BB44: J | BC44: J | BD44: R | BE44: H | BF44: 7 | BG44: K | BH44: K | BI44: K | BJ44: K | BK44: R | BL44: H | BM44: J | BN44: J | BO44: 7 | BP44: J | BQ44: J | BR44: R | BS44: H | BT44: J | BU44: J | BV44: J | BW44: J | BX44: 7 | BY44: R | BZ44: H | CA44: J | CB44: J | CC44: J | CD44: J | CE44: J | CF44: R | CG44: H | CH44: 7 | CI44: K | CJ44: K | CK44: K | CL44: K | CM44: R | CN44: H | CO44: J | CP44: J | CQ44: 7 | CR44: J | CS44: J | CT44: R | CU44: H | CV44: J | CW44: J | CX44: J | CY44: J | CZ44: 7 | DA44: R | DB44: H | DC44: J | DD44: J | DE44: J | DF44: J | DG44: J | DH44: R | DI44: H | DJ44: 7 | DK44: K | DL44: K | DM44: K | DN44: K | DO44: R | DP44: H | DQ44: J | DR44: J | DS44: 7 | DT44: J | DU44: J | DV44: R | DW44: H | DX44: J | DY44: J | DZ44: J | EA44: J | EB44: 7 | EC44: R | ED44: H | EE44: J | EF44: J | EG44: J | EH44: J | EI44: J | EJ44: R | EK44: H | EL44: 7 | EM44: K | EN44: K | EO44: K | EP44: K | EQ44: R | ER44: H | ES44: J | ET44: J | EU44: 7 | EV44: J | EW44: J | EX44: R | EY44: H | EZ44: J | FA44: J | FB44: J | FC44: J | FD44: 7 | FE44: R | FF44: H | FG44: J | FH44: J | FI44: J | FJ44: J | FK44: J | FL44: R | FM44: H | FN44: 7 | FO44: K | FP44: K | FQ44: K | FR44: K | FS44: R | FT44: H | FU44: J | FV44: J | FW44: 7 | FX44: J | FY44: J | FZ44: R | GA44: H | GB44: J | GC44: J | GD44: J | GE44: J | GF44: 7 | GG44: R | GH44: H | GI44: J | GJ44: J | GK44: J | GL44: J | GM44: J | GN44: R | GO44: H | GP44: 7 | GQ44: K | GR44: K | GS44: K | GT44: K | GU44: R | GV44: H | GW44: J | GX44: J | GY44: 7 | GZ44: J | HA44: J | HB44: R | HC44: H | HD44: J | HE44: J | HF44: J | HG44: J | HH44: 7 | HI44: R | HJ44: H | HK44: J | HL44: J | HM44: J | HN44: J | HO44: J | HP44: R | HQ44: H | HR44: 7 | HS44: K | HT44: K | HU44: K | HV44: K | HW44: R | HX44: H | HY44: J | HZ44: J | IA44: 7 | IB44: J | IC44: J | ID44: R | IE44: H | IF44: J | IG44: J | IH44: J | II44: J | IJ44: 7 | IK44: R | IL44: H | IM44: J | IN44: J | IO44: J | IP44: J | IQ44: J | IR44: R | IS44: H | IT44: 7 | IU44: K | IV44: K | IW44: K | IX44: K | IY44: R | IZ44: H | JA44: J | JB44: J | JC44: 7 | JD44: J | JE44: J | JF44: R | JG44: H | JH44: J | JI44: J | JJ44: J | JK44: J | JL44: 7 | JM44: R | JN44: H | JO44: J | JP44: J | JQ44: J | JR44: J | JS44: J | JT44: R | JU44: H | JV44: 7 | JW44: K | JX44: K | JY44: K | JZ44: K | KA44: R | KB44: H | KC44: J | KD44: J | KE44: 7 | KF44: J | KG44: J | KH44: R | KI44: H | KJ44: J | KK44: J | KL44: J | KM44: J | KN44: 7 | KO44: R | KP44: H | KQ44: J | KR44: J | KS44: J | KT44: J | KU44: J | KV44: R | KW44: H | KX44: 7 | KY44: K | KZ44: K | LA44: K | LB44: K | LC44: R | LD44: H | LE44: J | LF44: J | LG44: 7 | LH44: J | LI44: J | LJ44: R | LK44: H | LL44: J | LM44: J | LN44: J | LO44: J | LP44: 7 | LQ44: R | LR44: H | LS44: J | LT44: J | LU44: J | LV44: J | LW44: J | LX44: R | LY44: H | LZ44: 7 | MA44: K | MB44: K | MC44: K | MD44: K | ME44: R | MF44: H | MG44: J | MH44: J | MI44: 7 | MJ44: J | MK44: J | ML44: R | MM44: H | MN44: J | MO44: J | MP44: J | MQ44: J | MR44: 7 | MS44: R | MT44: H | MU44: J | MV44: J | MW44: J | MX44: J | MY44: J | MZ44: R | NA44: H | NB44: 7 | NC44: K | ND44: K | NE44: K | NF44: K | NG44: R | NH44: H | NI44: =comptecouleurfond2($H44:$AL44,$D$11) -> 18 | NJ44: =comptecouleurfond2($AM44:$BN44,$D$11) -> 13 | NK44: =comptecouleurfond2($BO44:$CS44,$D$11) -> 19 | NL44: =comptecouleurfond2($CT44:$DW44,D11) -> 17 | NM44: =comptecouleurfond2($DX44:$FB44,$D$11) -> 17 | NN44: =comptecouleurfond2($FC44:$GF44,$D$11) -> 17 | NO44: =comptecouleurfond2($GG44:$HK44,$D$11) -> 17 | NP44: =comptecouleurfond2($HL44:$IP44,$D$11) -> 19 | NQ44: =comptecouleurfond2($IQ44:$JT44,$D$11) -> 18 | NR44: =comptecouleurfond2($JU44:$KY44,D11) -> 18 | NS44: =comptecouleurfond2($KZ44:$MC44,D11) -> 18 | NT44: =comptecouleurfond2($MD44:$NH44,D11) -> 18 | NU44: =SUM(NI44:NT44) -> 209 | NV44: 3 | NW44: 4 | NX44: 5 | NY44: 4 | NZ44: 4 | OA44: 0 | OB44: 5 | OC44: 4 | OD44: 4 | OE44: 4 | OF44: 5 | OG44: 4 | OH44: 4 | OI44: 4 | OJ44: 5 | OK44: 4 | OL44: 4 | OM44: 3 | ON44: 4 | OO44: 4 | OP44: 3 | OQ44: 4 | OR44: 4 | OS44: 4 | OT44: 4 | OU44: 4 | OV44: 5 | OW44: 3 | OX44: 4 | OY44: 4 | OZ44: 5 | PA44: 4 | PB44: 3 | PC44: 4 | PD44: 5 | PE44: 4 | PF44: 4 | PG44: 4 | PH44: 5 | PI44: 4 | PJ44: 4 | PK44: 4 | PL44: 5 | PM44: 3 | PN44: 4 | PO44: 4 | PP44: 5 | PQ44: 4 | PR44: 4 | PS44: 4 | PT44: 5 | PU44: 4
A46: R | H46: H | I46: K | J46: 21 | K46: 21 | L46: 21 | M46: 7 | N46: R | O46: H | P46: K | Q46: J | R46: J | S46: J | T46: J | U46: R | V46: H | W46: 7 | X46: K | Y46: J | Z46: J | AA46: J | AB46: R | AC46: H | AD46: 7 | AE46: J | AF46: K | AG46: J | AH46: J | AI46: R | AJ46: H | AK46: K | AL46: J | AM46: J | AN46: J | AO46: 7 | AP46: R | AQ46: H | AR46: K | AS46: J | AT46: J | AU46: J | AV46: J | AW46: R | AX46: H | AY46: 7 | AZ46: K | BA46: J | BB46: J | BC46: J | BD46: R | BE46: H | BF46: K | BG46: J | BH46: 7 | BI46: J | BJ46: J | BK46: R | BL46: H | BM46: K | BN46: J | BO46: J | BP46: J | BQ46: 7 | BR46: R | BS46: H | BT46: K | BU46: J | BV46: J | BW46: J | BX46: J | BY46: R | BZ46: H | CA46: 7 | CB46: K | CC46: J | CD46: J | CE46: J | CF46: R | CG46: H | CH46: K | CI46: J | CJ46: 7 | CK46: J | CL46: J | CM46: R | CN46: H | CO46: K | CP46: J | CQ46: J | CR46: J | CS46: 7 | CT46: R | CU46: H | CV46: K | CW46: J | CX46: J | CY46: J | CZ46: J | DA46: R | DB46: H | DC46: 7 | DD46: K | DE46: J | DF46: J | DG46: J | DH46: R | DI46: H | DJ46: K | DK46: J | DL46: 7 | DM46: J | DN46: J | DO46: R | DP46: H | DQ46: K | DR46: J | DS46: J | DT46: J | DU46: 7 | DV46: R | DW46: H | DX46: K | DY46: J | DZ46: J | EA46: J | EB46: J | EC46: R | ED46: H | EE46: 7 | EF46: K | EG46: J | EH46: J | EI46: J | EJ46: R | EK46: H | EL46: K | EM46: J | EN46: 7 | EO46: J | EP46: J | EQ46: R | ER46: H | ES46: K | ET46: J | EU46: J | EV46: J | EW46: 7 | EX46: R | EY46: H | EZ46: K | FA46: J | FB46: J | FC46: J | FD46: J | FE46: R | FF46: H | FG46: 7 | FH46: K | FI46: J | FJ46: J | FK46: J | FL46: R | FM46: H | FN46: K | FO46: J | FP46: 7 | FQ46: J | FR46: J | FS46: R | FT46: H | FU46: K | FV46: J | FW46: J | FX46: J | FY46: 7 | FZ46: R | GA46: H | GB46: K | GC46: J | GD46: J | GE46: J | GF46: J | GG46: R | GH46: H | GI46: 7 | GJ46: K | GK46: J | GL46: J | GM46: J | GN46: R | GO46: H | GP46: K | GQ46: J | GR46: 7 | GS46: J | GT46: J | GU46: R | GV46: H | GW46: K | GX46: J | GY46: J | GZ46: J | HA46: 7 | HB46: R | HC46: H | HD46: K | HE46: J | HF46: J | HG46: J | HH46: J | HI46: R | HJ46: H | HK46: 7 | HL46: K | HM46: J | HN46: J | HO46: J | HP46: R | HQ46: H | HR46: K | HS46: J | HT46: 7 | HU46: J | HV46: J | HW46: R | HX46: H | HY46: K | HZ46: J | IA46: J | IB46: J | IC46: 7 | ID46: R | IE46: H | IF46: K | IG46: J | IH46: J | II46: J | IJ46: J | IK46: R | IL46: H | IM46: 7 | IN46: K | IO46: J | IP46: J | IQ46: J | IR46: R | IS46: H | IT46: K | IU46: J | IV46: 7 | IW46: J | IX46: J | IY46: R | IZ46: H | JA46: K | JB46: J | JC46: J | JD46: J | JE46: 7 | JF46: R | JG46: H | JH46: K | JI46: J | JJ46: J | JK46: J | JL46: J | JM46: R | JN46: H | JO46: 7 | JP46: K | JQ46: J | JR46: J | JS46: J | JT46: R | JU46: H | JV46: K | JW46: J | JX46: 7 | JY46: J | JZ46: J | KA46: R | KB46: H | KC46: K | KD46: J | KE46: J | KF46: J | KG46: 7 | KH46: R | KI46: H | KJ46: K | KK46: J | KL46: J | KM46: J | KN46: J | KO46: R | KP46: H | KQ46: 7 | KR46: K | KS46: J | KT46: J | KU46: J | KV46: R | KW46: H | KX46: K | KY46: J | KZ46: 7 | LA46: J | LB46: J | LC46: R | LD46: H | LE46: K | LF46: J | LG46: J | LH46: J | LI46: 7 | LJ46: R | LK46: H | LL46: K | LM46: J | LN46: J | LO46: J | LP46: J | LQ46: R | LR46: H | LS46: 7 | LT46: K | LU46: J | LV46: J | LW46: J | LX46: R | LY46: H | LZ46: K | MA46: J | MB46: 7 | MC46: J | MD46: J | ME46: R | MF46: H | MG46: K | MH46: J | MI46: J | MJ46: J | MK46: 7 | ML46: R | MM46: H | MN46: K | MO46: J | MP46: J | MQ46: J | MR46: J | MS46: R | MT46: H | MU46: 7 | MV46: K | MW46: J | MX46: J | MY46: J | MZ46: R | NA46: H | NB46: K | NC46: J | ND46: 7 | NE46: J | NF46: J | NG46: R | NH46: H | NI46: =comptecouleurfond2($H46:$AL46,$D$11) -> 15 | NJ46: =comptecouleurfond2($AM46:$BN46,$D$11) -> 17 | NK46: =comptecouleurfond2($BO46:$CS46,$D$11) -> 19 | NL46: =comptecouleurfond2($CT46:$DW46,D11) -> 16 | NM46: =comptecouleurfond2($DX46:$FB46,$D$11) -> 18 | NN46: =comptecouleurfond2($FC46:$GF46,$D$11) -> 19 | NO46: =comptecouleurfond2($GG46:$HK46,$D$11) -> 16 | NP46: =comptecouleurfond2($HL46:$IP46,$D$11) -> 19 | NQ46: =comptecouleurfond2($IQ46:$JT46,$D$11) -> 18 | NR46: =comptecouleurfond2($JU46:$KY46,D11) -> 19 | NS46: =comptecouleurfond2($KZ46:$MC46,D11) -> 18 | NT46: =comptecouleurfond2($MD46:$NH46,D11) -> 17 | NU46: =SUM(NI46:NT46) -> 211 | NV46: 0 | NW46: 5 | NX46: 4 | NY46: 4 | NZ46: 4 | OA46: 5 | OB46: 4 | OC46: 4 | OD46: 4 | OE46: 5 | OF46: 4 | OG46: 4 | OH46: 4 | OI46: 5 | OJ46: 4 | OK46: 3 | OL46: 4 | OM46: 4 | ON46: 4 | OO46: 4 | OP46: 3 | OQ46: 5 | OR46: 4 | OS46: 4 | OT46: 4 | OU46: 5 | OV46: 4 | OW46: 3 | OX46: 4 | OY46: 5 | OZ46: 4 | PA46: 4 | PB46: 3 | PC46: 5 | PD46: 4 | PE46: 4 | PF46: 4 | PG46: 5 | PH46: 4 | PI46: 4 | PJ46: 4 | PK46: 5 | PL46: 4 | PM46: 4 | PN46: 4 | PO46: 5 | PP46: 4 | PQ46: 4 | PR46: 4 | PS46: 5 | PT46: 4 | PU46: 3
A48: S | H48: H | I48: K | J48: - | K48: 7 | L48: J | M48: J | N48: R | O48: H | P48: K | Q48: K | R48: J | S48: 21 | T48: 7 | U48: R | V48: H | W48: J | X48: J | Y48: J | Z48: J | AA48: J | AB48: R | AC48: H | AD48: 7 | AE48: K | AF48: J | AG48: J | AH48: J | AI48: R | AJ48: H | AK48: K | AL48: K | AM48: 7 | AN48: J | AO48: J | AP48: R | AQ48: H | AR48: K | AS48: K | AT48: J | AU48: J | AV48: 7 | AW48: R | AX48: H | AY48: J | AZ48: J | BA48: J | BB48: J | BC48: J | BD48: R | BE48: H | BF48: 7 | BG48: K | BH48: J | BI48: J | BJ48: J | BK48: R | BL48: H | BM48: K | BN48: K | BO48: 7 | BP48: J | BQ48: J | BR48: R | BS48: H | BT48: K | BU48: K | BV48: J | BW48: J | BX48: 7 | BY48: R | BZ48: H | CA48: J | CB48: J | CC48: J | CD48: J | CE48: J | CF48: R | CG48: H | CH48: 7 | CI48: K | CJ48: J | CK48: J | CL48: J | CM48: R | CN48: H | CO48: K | CP48: K | CQ48: 7 | CR48: J | CS48: J | CT48: R | CU48: H | CV48: K | CW48: K | CX48: J | CY48: J | CZ48: 7 | DA48: R | DB48: H | DC48: J | DD48: J | DE48: J | DF48: J | DG48: J | DH48: R | DI48: H | DJ48: 7 | DK48: K | DL48: J | DM48: J | DN48: J | DO48: R | DP48: H | DQ48: K | DR48: K | DS48: 7 | DT48: J | DU48: J | DV48: R | DW48: H | DX48: K | DY48: K | DZ48: J | EA48: J | EB48: 7 | EC48: R | ED48: H | EE48: J | EF48: J | EG48: J | EH48: J | EI48: J | EJ48: R | EK48: H | EL48: 7 | EM48: K | EN48: J | EO48: J | EP48: J | EQ48: R | ER48: H | ES48: K | ET48: K | EU48: 7 | EV48: J | EW48: J | EX48: R | EY48: H | EZ48: K | FA48: K | FB48: J | FC48: J | FD48: 7 | FE48: R | FF48: H | FG48: J | FH48: J | FI48: J | FJ48: J | FK48: J | FL48: R | FM48: H | FN48: 7 | FO48: K | FP48: J | FQ48: J | FR48: J | FS48: R | FT48: H | FU48: K | FV48: K | FW48: 7 | FX48: J | FY48: J | FZ48: R | GA48: H | GB48: K | GC48: K | GD48: J | GE48: J | GF48: 7 | GG48: R | GH48: H | GI48: J | GJ48: J | GK48: J | GL48: J | GM48: J | GN48: R | GO48: H | GP48: 7 | GQ48: K | GR48: J | GS48: J | GT48: J | GU48: R | GV48: H | GW48: K | GX48: K | GY48: 7 | GZ48: J | HA48: J | HB48: R | HC48: H | HD48: K | HE48: K | HF48: J | HG48: J | HH48: 7 | HI48: R | HJ48: H | HK48: J | HL48: J | HM48: J | HN48: J | HO48: J | HP48: R | HQ48: H | HR48: 7 | HS48: K | HT48: J | HU48: J | HV48: J | HW48: R | HX48: H | HY48: K | HZ48: K | IA48: 7 | IB48: J | IC48: J | ID48: R | IE48: H | IF48: K | IG48: K | IH48: J | II48: J | IJ48: 7 | IK48: R | IL48: H | IM48: J | IN48: J | IO48: J | IP48: J | IQ48: J | IR48: R | IS48: H | IT48: 7 | IU48: K | IV48: J | IW48: J | IX48: J | IY48: R | IZ48: H | JA48: K | JB48: K | JC48: 7 | JD48: J | JE48: J | JF48: R | JG48: H | JH48: K | JI48: K | JJ48: J | JK48: J | JL48: 7 | JM48: R | JN48: H | JO48: J | JP48: J | JQ48: J | JR48: J | JS48: J | JT48: R | JU48: H | JV48: 7 | JW48: K | JX48: J | JY48: J | JZ48: J | KA48: R | KB48: H | KC48: K | KD48: K | KE48: 7 | KF48: J | KG48: J | KH48: R | KI48: H | KJ48: K | KK48: K | KL48: J | KM48: J | KN48: 7 | KO48: R | KP48: H | KQ48: J | KR48: J | KS48: J | KT48: J | KU48: J | KV48: R | KW48: H | KX48: 7 | KY48: K | KZ48: J | LA48: J | LB48: J | LC48: R | LD48: H | LE48: K | LF48: K | LG48: 7 | LH48: J | LI48: J | LJ48: R | LK48: H | LL48: K | LM48: K | LN48: J | LO48: J | LP48: 7 | LQ48: R | LR48: H | LS48: J | LT48: J | LU48: J | LV48: J | LW48: J | LX48: R | LY48: H | LZ48: 7 | MA48: K | MB48: J | MC48: J | MD48: J | ME48: R | MF48: H | MG48: K | MH48: K | MI48: 7 | MJ48: J | MK48: J | ML48: R | MM48: H | MN48: K | MO48: K | MP48: J | MQ48: J | MR48: 7 | MS48: R | MT48: H | MU48: J | MV48: J | MW48: J | MX48: J | MY48: J | MZ48: R | NA48: H | NB48: 7 | NC48: K | ND48: J | NE48: J | NF48: J | NG48: R | NH48: H | NI48: =comptecouleurfond2($H48:$AL48,$D$11) -> 16 | NJ48: =comptecouleurfond2($AM48:$BN48,$D$11) -> 17 | NK48: =comptecouleurfond2($BO48:$CS48,$D$11) -> 19 | NL48: =comptecouleurfond2($CT48:$DW48,D11) -> 17 | NM48: =comptecouleurfond2($DX48:$FB48,$D$11) -> 17 | NN48: =comptecouleurfond2($FC48:$GF48,$D$11) -> 17 | NO48: =comptecouleurfond2($GG48:$HK48,$D$11) -> 17 | NP48: =comptecouleurfond2($HL48:$IP48,$D$11) -> 19 | NQ48: =comptecouleurfond2($IQ48:$JT48,$D$11) -> 18 | NR48: =comptecouleurfond2($JU48:$KY48,K47) -> 13 | NS48: =comptecouleurfond2($KZ48:$MC48,K47) -> 12 | NT48: =comptecouleurfond2($MD48:$NH48,K47) -> 13 | NU48: =SUM(NI48:NT48) -> 195 | NV48: 2 | NW48: 3 | NX48: 5 | NY48: 4 | NZ48: 4 | OA48: 4 | OB48: 5 | OC48: 4 | OD48: 4 | OE48: 4 | OF48: 5 | OG48: 4 | OH48: 4 | OI48: 4 | OJ48: 5 | OK48: 4 | OL48: 4 | OM48: 3 | ON48: 4 | OO48: 4 | OP48: 3 | OQ48: 4 | OR48: 4 | OS48: 4 | OT48: 4 | OU48: 4 | OV48: 5 | OW48: 3 | OX48: 4 | OY48: 4 | OZ48: 5 | PA48: 4 | PB48: 3 | PC48: 4 | PD48: 5 | PE48: 4 | PF48: 4 | PG48: 4 | PH48: 5 | PI48: 4 | PJ48: 4 | PK48: 4 | PL48: 5 | PM48: 3 | PN48: 4 | PO48: 4 | PP48: 5 | PQ48: 4 | PR48: 4 | PS48: 4 | PT48: 5 | PU48: 4
A50: T | H50: H | I50: K | J50: J | K50: 7 | L50: J | M50: J | N50: R | O50: H | P50: K | Q50: J | R50: CT | S50: CT | T50: 7 | U50: R | V50: H | W50: 7 | X50: 21 | Y50: 21 | Z50: 21 | AA50: 21 | AB50: R | AC50: H | AD50: 21 | AE50: 21 | AF50: 21 | AG50: 21 | AH50: 21 | AI50: R | AJ50: H | AK50: K | AL50: J | AM50: 7 | AN50: J | AO50: J | AP50: R | AQ50: H | AR50: K | AS50: J | AT50: J | AU50: J | AV50: 7 | AW50: R | AX50: H | AY50: 7 | AZ50: K | BA50: J | BB50: J | BC50: J | BD50: R | BE50: H | BF50: K | BG50: J | BH50: J | BI50: J | BJ50: J | BK50: R | BL50: H | BM50: K | BN50: J | BO50: 7 | BP50: J | BQ50: J | BR50: R | BS50: H | BT50: K | BU50: J | BV50: J | BW50: J | BX50: 7 | BY50: R | BZ50: H | CA50: 7 | CB50: K | CC50: J | CD50: J | CE50: J | CF50: R | CG50: H | CH50: K | CI50: J | CJ50: J | CK50: J | CL50: J | CM50: R | CN50: H | CO50: K | CP50: J | CQ50: 7 | CR50: J | CS50: J | CT50: R | CU50: H | CV50: K | CW50: J | CX50: J | CY50: J | CZ50: 7 | DA50: R | DB50: H | DC50: 7 | DD50: K | DE50: J | DF50: J | DG50: J | DH50: R | DI50: H | DJ50: K | DK50: J | DL50: J | DM50: J | DN50: J | DO50: R | DP50: H | DQ50: K | DR50: J | DS50: 7 | DT50: J | DU50: J | DV50: R | DW50: H | DX50: K | DY50: J | DZ50: J | EA50: J | EB50: 7 | EC50: R | ED50: H | EE50: 7 | EF50: K | EG50: J | EH50: J | EI50: J | EJ50: R | EK50: H | EL50: K | EM50: J | EN50: J | EO50: J | EP50: J | EQ50: R | ER50: H | ES50: K | ET50: J | EU50: 7 | EV50: J | EW50: J | EX50: R | EY50: H | EZ50: K | FA50: J | FB50: J | FC50: J | FD50: 7 | FE50: R | FF50: H | FG50: 7 | FH50: K | FI50: J | FJ50: J | FK50: J | FL50: R | FM50: H | FN50: K | FO50: J | FP50: J | FQ50: J | FR50: J | FS50: R | FT50: H | FU50: K | FV50: J | FW50: 7 | FX50: J | FY50: J | FZ50: R | GA50: H | GB50: K | GC50: J | GD50: J | GE50: J | GF50: 7 | GG50: R | GH50: H | GI50: 7 | GJ50: K | GK50: J | GL50: J | GM50: J | GN50: R | GO50: H | GP50: K | GQ50: J | GR50: J | GS50: J | GT50: J | GU50: R | GV50: H | GW50: K | GX50: J | GY50: 7 | GZ50: J | HA50: J | HB50: R | HC50: H | HD50: K | HE50: J | HF50: J | HG50: J | HH50: 7 | HI50: R | HJ50: H | HK50: 7 | HL50: K | HM50: J | HN50: J | HO50: J | HP50: R | HQ50: H | HR50: K | HS50: J | HT50: J | HU50: J | HV50: J | HW50: R | HX50: H | HY50: K | HZ50: J | IA50: 7 | IB50: J | IC50: J | ID50: R | IE50: H | IF50: K | IG50: J | IH50: J | II50: J | IJ50: 7 | IK50: R | IL50: H | IM50: 7 | IN50: K | IO50: J | IP50: J | IQ50: J | IR50: R | IS50: H | IT50: K | IU50: J | IV50: J | IW50: J | IX50: J | IY50: R | IZ50: H | JA50: K | JB50: J | JC50: 7 | JD50: J | JE50: J | JF50: R | JG50: H | JH50: K | JI50: J | JJ50: J | JK50: J | JL50: 7 | JM50: R | JN50: H | JO50: 7 | JP50: K | JQ50: J | JR50: J | JS50: J | JT50: R | JU50: H | JV50: K | JW50: J | JX50: J | JY50: J | JZ50: J | KA50: R | KB50: H | KC50: K | KD50: J | KE50: 7 | KF50: J | KG50: J | KH50: R | KI50: H | KJ50: K | KK50: J | KL50: J | KM50: J | KN50: 7 | KO50: R | KP50: H | KQ50: 7 | KR50: K | KS50: J | KT50: J | KU50: J | KV50: R | KW50: H | KX50: K | KY50: J | KZ50: J | LA50: J | LB50: J | LC50: R | LD50: H | LE50: K | LF50: J | LG50: 7 | LH50: J | LI50: J | LJ50: R | LK50: H | LL50: K | LM50: J | LN50: J | LO50: J | LP50: 7 | LQ50: R | LR50: H | LS50: 7 | LT50: K | LU50: J | LV50: J | LW50: J | LX50: R | LY50: H | LZ50: K | MA50: J | MB50: J | MC50: J | MD50: J | ME50: R | MF50: H | MG50: K | MH50: J | MI50: 7 | MJ50: J | MK50: J | ML50: R | MM50: H | MN50: K | MO50: J | MP50: J | MQ50: J | MR50: 7 | MS50: R | MT50: H | MU50: 7 | MV50: K | MW50: J | MX50: J | MY50: J | MZ50: R | NA50: H | NB50: K | NC50: J | ND50: J | NE50: J | NF50: J | NG50: R | NH50: H | NI50: =comptecouleurfond2($H50:$AL50,$D$11) -> 7 | NJ50: =comptecouleurfond2($AM50:$BN50,$D$11) -> 17 | NK50: =comptecouleurfond2($BO50:$CS50,$D$11) -> 19 | NL50: =comptecouleurfond2($CT50:$DW50,D11) -> 16 | NM50: =comptecouleurfond2($DX50:$FB50,$D$11) -> 18 | NN50: =comptecouleurfond2($FC50:$GF50,$D$11) -> 18 | NO50: =comptecouleurfond2($GG50:$HK50,$D$11) -> 16 | NP50: =comptecouleurfond2($HL50:$IP50,$D$11) -> 19 | NQ50: =comptecouleurfond2($IQ50:$JT50,$D$11) -> 18 | NR50: =comptecouleurfond2($JU50:$KY50,K49) -> 12 | NS50: =comptecouleurfond2($KZ50:$MC50,K49) -> 12 | NT50: =comptecouleurfond2($MD50:$NH50,K49) -> 14 | NU50: =SUM(NI50:NT50) -> 186 | NV50: 3 | NW50: 2 | NX50: 0 | NY50: 0 | NZ50: 4 | OA50: 4 | OB50: 4 | OC50: 5 | OD50: 4 | OE50: 4 | OF50: 4 | OG50: 5 | OH50: 4 | OI50: 4 | OJ50: 4 | OK50: 4 | OL50: 4 | OM50: 3 | ON50: 4 | OO50: 5 | OP50: 3 | OQ50: 4 | OR50: 4 | OS50: 5 | OT50: 4 | OU50: 4 | OV50: 4 | OW50: 4 | OX50: 4 | OY50: 4 | OZ50: 4 | PA50: 5 | PB50: 3 | PC50: 4 | PD50: 4 | PE50: 5 | PF50: 4 | PG50: 4 | PH50: 4 | PI50: 5 | PJ50: 4 | PK50: 4 | PL50: 4 | PM50: 4 | PN50: 4 | PO50: 4 | PP50: 4 | PQ50: 5 | PR50: 4 | PS50: 4 | PT50: 4 | PU50: 4
A52: U | H52: H | I52: K | J52: K | K52: K | L52: K | M52: K | N52: R | O52: H | P52: K | Q52: K | R52: 7 | S52: K | T52: J | U52: R | V52: H | W52: 7 | X52: J | Y52: CT | Z52: J | AA52: J | AB52: R | AC52: H | AD52: FP | AE52: K | AF52: K | AG52: K | AH52: 7 | AI52: R | AJ52: H | AK52: K | AL52: K | AM52: K | AN52: K | AO52: K | AP52: R | AQ52: H | AR52: K | AS52: K | AT52: 7 | AU52: K | AV52: J | AW52: R | AX52: H | AY52: 7 | AZ52: J | BA52: J | BB52: J | BC52: J | BD52: R | BE52: H | BF52: K | BG52: K | BH52: K | BI52: K | BJ52: 7 | BK52: R | BL52: H | BM52: K | BN52: K | BO52: K | BP52: K | BQ52: K | BR52: R | BS52: H | BT52: K | BU52: K | BV52: 7 | BW52: K | BX52: J | BY52: R | BZ52: H | CA52: 7 | CB52: J | CC52: J | CD52: J | CE52: J | CF52: R | CG52: H | CH52: K | CI52: K | CJ52: K | CK52: K | CL52: 7 | CM52: R | CN52: H | CO52: K | CP52: K | CQ52: K | CR52: K | CS52: K | CT52: R | CU52: H | CV52: K | CW52: K | CX52: 7 | CY52: K | CZ52: J | DA52: R | DB52: H | DC52: 7 | DD52: J | DE52: J | DF52: J | DG52: J | DH52: R | DI52: H | DJ52: K | DK52: K | DL52: K | DM52: K | DN52: 7 | DO52: R | DP52: H | DQ52: K | DR52: K | DS52: K | DT52: K | DU52: K | DV52: R | DW52: H | DX52: K | DY52: K | DZ52: 7 | EA52: K | EB52: J | EC52: R | ED52: H | EE52: 7 | EF52: J | EG52: J | EH52: J | EI52: J | EJ52: R | EK52: H | EL52: K | EM52: K | EN52: K | EO52: K | EP52: 7 | EQ52: R | ER52: H | ES52: K | ET52: K | EU52: K | EV52: K | EW52: K | EX52: R | EY52: H | EZ52: K | FA52: K | FB52: 7 | FC52: K | FD52: J | FE52: R | FF52: H | FG52: 7 | FH52: J | FI52: J | FJ52: J | FK52: J | FL52: R | FM52: H | FN52: K | FO52: K | FP52: K | FQ52: K | FR52: 7 | FS52: R | FT52: H | FU52: K | FV52: K | FW52: K | FX52: K | FY52: K | FZ52: R | GA52: H | GB52: K | GC52: K | GD52: 7 | GE52: K | GF52: J | GG52: R | GH52: H | GI52: 7 | GJ52: J | GK52: J | GL52: J | GM52: J | GN52: R | GO52: H | GP52: K | GQ52: K | GR52: K | GS52: K | GT52: 7 | GU52: R | GV52: H | GW52: K | GX52: K | GY52: K | GZ52: K | HA52: K | HB52: R | HC52: H | HD52: K | HE52: K | HF52: 7 | HG52: K | HH52: J | HI52: R | HJ52: H | HK52: 7 | HL52: J | HM52: J | HN52: J | HO52: J | HP52: R | HQ52: H | HR52: K | HS52: K | HT52: K | HU52: K | HV52: 7 | HW52: R | HX52: H | HY52: K | HZ52: K | IA52: K | IB52: K | IC52: K | ID52: R | IE52: H | IF52: K | IG52: K | IH52: 7 | II52: K | IJ52: J | IK52: R | IL52: H | IM52: 7 | IN52: J | IO52: J | IP52: J | IQ52: J | IR52: R | IS52: H | IT52: K | IU52: K | IV52: K | IW52: K | IX52: 7 | IY52: R | IZ52: H | JA52: K | JB52: K | JC52: K | JD52: K | JE52: K | JF52: R | JG52: H | JH52: K | JI52: K | JJ52: 7 | JK52: K | JL52: J | JM52: R | JN52: H | JO52: 7 | JP52: J | JQ52: J | JR52: J | JS52: J | JT52: R | JU52: H | JV52: K | JW52: K | JX52: K | JY52: K | JZ52: 7 | KA52: R | KB52: H | KC52: K | KD52: K | KE52: K | KF52: K | KG52: K | KH52: R | KI52: H | KJ52: K | KK52: K | KL52: 7 | KM52: K | KN52: J | KO52: R | KP52: H | KQ52: 7 | KR52: J | KS52: J | KT52: J | KU52: J | KV52: R | KW52: H | KX52: K | KY52: K | KZ52: K | LA52: K | LB52: 7 | LC52: R | LD52: H | LE52: K | LF52: K | LG52: K | LH52: K | LI52: K | LJ52: R | LK52: H | LL52: K | LM52: K | LN52: 7 | LO52: K | LP52: J | LQ52: R | LR52: H | LS52: 7 | LT52: J | LU52: J | LV52: J | LW52: J | LX52: R | LY52: H | LZ52: K | MA52: K | MB52: K | MC52: K | MD52: 7 | ME52: R | MF52: H | MG52: K | MH52: K | MI52: K | MJ52: K | MK52: K | ML52: R | MM52: H | MN52: K | MO52: K | MP52: 7 | MQ52: K | MR52: J | MS52: R | MT52: H | MU52: 7 | MV52: J | MW52: J | MX52: J | MY52: J | MZ52: R | NA52: H | NB52: K | NC52: K | ND52: K | NE52: K | NF52: 7 | NG52: R | NH52: H | NI52: =comptecouleurfond2($H52:$AL52,$D$11) -> 16 | NJ52: =comptecouleurfond2($AM52:$BN52,$D$11) -> 17 | NK52: =comptecouleurfond2($BO52:$CS52,$D$11) -> 20 | NL52: =comptecouleurfond2($CT52:$DW52,D11) -> 16 | NM52: =comptecouleurfond2($DX52:$FB52,$D$11) -> 17 | NN52: =comptecouleurfond2($FC52:$GF52,$D$11) -> 19 | NO52: =comptecouleurfond2($GG52:$HK52,$D$11) -> 17 | NP52: =comptecouleurfond2($HL52:$IP52,$D$11) -> 19 | NQ52: =comptecouleurfond2($IQ52:$JT52,$D$11) -> 18 | NR52: =comptecouleurfond2($JU52:$KY52,K51) -> 19 | NS52: =comptecouleurfond2($KZ52:$MC52,K51) -> 18 | NT52: =comptecouleurfond2($MD52:$NH52,K51) -> 16 | NU52: =SUM(NI52:NT52) -> 212 | NV52: 4 | NW52: 4 | NX52: 3 | NY52: 3 | NZ52: 5 | OA52: 4 | OB52: 4 | OC52: 4 | OD52: 5 | OE52: 4 | OF52: 4 | OG52: 4 | OH52: 5 | OI52: 4 | OJ52: 4 | OK52: 3 | OL52: 5 | OM52: 3 | ON52: 4 | OO52: 4 | OP52: 4 | OQ52: 4 | OR52: 4 | OS52: 4 | OT52: 5 | OU52: 4 | OV52: 4 | OW52: 4 | OX52: 5 | OY52: 4 | OZ52: 4 | PA52: 4 | PB52: 4 | PC52: 4 | PD52: 4 | PE52: 4 | PF52: 5 | PG52: 4 | PH52: 4 | PI52: 4 | PJ52: 5 | PK52: 4 | PL52: 4 | PM52: 3 | PN52: 5 | PO52: 4 | PP52: 4 | PQ52: 4 | PR52: 5 | PS52: 4 | PT52: 4 | PU52: 3
A54: V | H54: H | I54: L | J54: J | K54: J | L54: J | M54: J | N54: R | O54: H | P54: 7 | Q54: FP | R54: J | S54: J | T54: J | U54: R | V54: H | W54: L | X54: L | Y54: 7 | Z54: J | AA54: J | AB54: R | AC54: H | AD54: FP | AE54: J | AF54: J | AG54: J | AH54: 7 | AI54: R | AJ54: H | AK54: L | AL54: J | AM54: J | AN54: J | AO54: J | AP54: R | AQ54: H | AR54: 7 | AS54: J | AT54: J | AU54: J | AV54: J | AW54: R | AX54: H | AY54: L | AZ54: L | BA54: 7 | BB54: J | BC54: J | BD54: R | BE54: H | BF54: L | BG54: J | BH54: J | BI54: J | BJ54: 7 | BK54: R | BL54: H | BM54: L | BN54: J | BO54: J | BP54: J | BQ54: J | BR54: R | BS54: H | BT54: 7 | BU54: J | BV54: J | BW54: J | BX54: J | BY54: R | BZ54: H | CA54: L | CB54: L | CC54: 7 | CD54: J | CE54: J | CF54: R | CG54: H | CH54: L | CI54: J | CJ54: J | CK54: J | CL54: 7 | CM54: R | CN54: H | CO54: L | CP54: J | CQ54: J | CR54: J | CS54: J | CT54: R | CU54: H | CV54: 7 | CW54: J | CX54: J | CY54: J | CZ54: J | DA54: R | DB54: H | DC54: L | DD54: L | DE54: 7 | DF54: J | DG54: J | DH54: R | DI54: H | DJ54: L | DK54: J | DL54: J | DM54: J | DN54: 7 | DO54: R | DP54: H | DQ54: L | DR54: J | DS54: J | DT54: J | DU54: J | DV54: R | DW54: H | DX54: J | DY54: J | DZ54: J | EA54: J | EB54: J | EC54: R | ED54: H | EE54: L | EF54: 7 | EG54: 7 | EH54: J | EI54: J | EJ54: R | EK54: H | EL54: L | EM54: J | EN54: J | EO54: J | EP54: 7 | EQ54: R | ER54: H | ES54: L | ET54: J | EU54: J | EV54: J | EW54: J | EX54: R | EY54: H | EZ54: 7 | FA54: J | FB54: J | FC54: J | FD54: J | FE54: R | FF54: H | FG54: L | FH54: L | FI54: 7 | FJ54: J | FK54: J | FL54: R | FM54: H | FN54: L | FO54: J | FP54: J | FQ54: J | FR54: 7 | FS54: R | FT54: H | FU54: L | FV54: J | FW54: J | FX54: J | FY54: J | FZ54: R | GA54: H | GB54: 7 | GC54: J | GD54: J | GE54: J | GF54: J | GG54: R | GH54: H | GI54: L | GJ54: L | GK54: 7 | GL54: J | GM54: J | GN54: R | GO54: H | GP54: L | GQ54: J | GR54: J | GS54: J | GT54: J | GU54: R | GV54: H | GW54: 7 | GX54: J | GY54: J | GZ54: J | HA54: J | HB54: R | HC54: H | HD54: 7 | HE54: J | HF54: J | HG54: J | HH54: J | HI54: R | HJ54: H | HK54: 21 | HL54: 21 | HM54: 7 | HN54: 21 | HO54: 21 | HP54: R | HQ54: H | HR54: 21 | HS54: 21 | HT54: 21 | HU54: 21 | HV54: 7 | HW54: R | HX54: H | HY54: 21 | HZ54: J | IA54: 21 | IB54: 21 | IC54: 21 | ID54: R | IE54: H | IF54: 7 | IG54: 21 | IH54: 21 | II54: 21 | IJ54: 21 | IK54: R | IL54: H | IM54: 21 | IN54: 21 | IO54: 7 | IP54: 21 | IQ54: 21 | IR54: R | IS54: H | IT54: L | IU54: J | IV54: J | IW54: J | IX54: 7 | IY54: R | IZ54: H | JA54: L | JB54: J | JC54: J | JD54: J | JE54: J | JF54: R | JG54: H | JH54: 7 | JI54: J | JJ54: J | JK54: J | JL54: J | JM54: R | JN54: H | JO54: L | JP54: L | JQ54: 7 | JR54: J | JS54: J | JT54: R | JU54: H | JV54: L | JW54: J | JX54: J | JY54: 21 | JZ54: 7 | KA54: R | KB54: H | KC54: 21 | KD54: 21 | KE54: 21 | KF54: 21 | KG54: 21 | KH54: R | KI54: H | KJ54: 7 | KK54: J | KL54: J | KM54: J | KN54: J | KO54: R | KP54: H | KQ54: L | KR54: L | KS54: 7 | KT54: J | KU54: J | KV54: R | KW54: H | KX54: L | KY54: J | KZ54: J | LA54: J | LB54: 7 | LC54: R | LD54: H | LE54: L | LF54: J | LG54: J | LH54: J | LI54: J | LJ54: R | LK54: H | LL54: 7 | LM54: J | LN54: J | LO54: J | LP54: J | LQ54: R | LR54: H | LS54: L | LT54: L | LU54: 7 | LV54: J | LW54: J | LX54: R | LY54: H | LZ54: L | MA54: J | MB54: J | MC54: J | MD54: 7 | ME54: R | MF54: H | MG54: L | MH54: J | MI54: J | MJ54: J | MK54: J | ML54: R | MM54: H | MN54: 7 | MO54: J | MP54: J | MQ54: J | MR54: J | MS54: R | MT54: H | MU54: L | MV54: L | MW54: 7 | MX54: J | MY54: J | MZ54: R | NA54: H | NB54: L | NC54: J | ND54: J | NE54: J | NF54: 7 | NG54: R | NH54: H | NI54: =comptecouleurfond2($H54:$AL54,$D$11) -> 16 | NJ54: =comptecouleurfond2($AM54:$BN54,$D$11) -> 17 | NK54: =comptecouleurfond2($BO54:$CS54,$D$11) -> 20 | NL54: =comptecouleurfond2($CT54:$DW54,D11) -> 16 | NM54: =comptecouleurfond2($DX54:$FB54,$D$11) -> 16 | NN54: =comptecouleurfond2($FC54:$GF54,$D$11) -> 18 | NO54: =comptecouleurfond2($GG54:$HK54,$D$11) -> 16 | NP54: =comptecouleurfond2($HL54:$IP54,$D$11) -> 0 | NQ54: =comptecouleurfond2($IQ54:$JT54,$D$11) -> 17 | NR54: =comptecouleurfond2($JU54:$KY54,K53) -> 13 | NS54: =comptecouleurfond2($KZ54:$MC54,K53) -> 18 | NT54: =comptecouleurfond2($MD54:$NH54,K53) -> 16 | NU54: =SUM(NI54:NT54) -> 183 | NV54: 4 | NW54: 3 | NX54: 4 | NY54: 3 | NZ54: 5 | OA54: 4 | OB54: 4 | OC54: =comptecouleurfond2(BF54:BL54,$D$11) -> 4 | OD54: 5 | OE54: 4 | OF54: 4 | OG54: 4 | OH54: 5 | OI54: 4 | OJ54: 4 | OK54: 3 | OL54: 5 | OM54: 4 | ON54: 2 | OO54: 4 | OP54: 4 | OQ54: 4 | OR54: 3 | OS54: 4 | OT54: 5 | OU54: 4 | OV54: 4 | OW54: 4 | OX54: 4 | OY54: 4 | OZ54: 0 | PA54: 0 | PB54: 0 | PC54: 0 | PD54: 0 | PE54: 4 | PF54: 5 | PG54: 4 | PH54: 4 | PI54: 3 | PJ54: 0 | PK54: 4 | PL54: 4 | PM54: 3 | PN54: 5 | PO54: 4 | PP54: 4 | PQ54: 4 | PR54: 5 | PS54: 4 | PT54: 4 | PU54: 3
